Workbook

Sheet Ведомственная 2008 (hidden)
B1: Приложение 13
B2: к Закону Московской области №
B3: "О внесении изменений в Закон Московской области
B4: "О бюджете Московской области на 2008 год"
B6: Приложение 19
B7: к Закону Московской области №
B8: "О бюджете Московской области на 2008 год"
B11: Ведомственная структура расходов
B12: бюджета Московской области на 2008 год
H14: (тыс. рублей)
B15: Наименования | C15: Код | D15: Рз | E15: ПР | F15: ЦСР | G15: ВР | H15: Сумма
A17: 0 | B17: Московская областная Дума | C17: 001 | H17: =H18+H42+H47+H52 -> 926254
A18: 1 | B18: Общегосударственные вопросы | C18: 001 | D18: 01 | H18: =H19+H34 -> 818155
A19: 103 | B19: Функционирование законодательных (представительных) органов государственной власти и представительных органов муниципальных образований | C19: 001 | D19: 01 | E19: 03 | H19: =H20+H27 -> 806070
A20: 103002 | B20: Руководство и управление в сфере установленных функций органов государственной власти субъектов Российской Федерации и органов местного самоуправления | C20: 001 | D20: 01 | E20: 03 | F20: 002 00 00 | H20: =H21+H23+H25 -> 797591
A21: 10300204 | B21: Центральный аппарат | C21: 001 | D21: 01 | E21: 03 | F21: 002 04 00 | H21: =H22 -> 709475
A22: 10300204012 | B22: Выполнение функций государственными органами | C22: 001 | D22: 01 | E22: 03 | F22: 002 04 00 | G22: 012 | H22: 709475
A23: 10300209 | B23: Председатель законодательного (представительного) органа государственной власти субъекта Российской Федерации | C23: 001 | D23: 01 | E23: 03 | F23: 002 09 00 | H23: =H24 -> 2381
A24: 10300209012 | B24: Выполнение функций государственными органами | C24: 001 | D24: 01 | E24: 03 | F24: 002 09 00 | G24: 012 | H24: 2381
A25: 10300210 | B25: Депутаты (члены) законодательного (представительного) органа государственной власти субъекта Российской Федерации | C25: 001 | D25: 01 | E25: 03 | F25: 002 10 00 | H25: =H26 -> 85735
A26: 10300210012 | B26: Выполнение функций государственными органами | C26: 001 | D26: 01 | E26: 03 | F26: 002 10 00 | G26: 012 | H26: 85735
A27: 103803 | B27: Расходы на страхование | C27: 001 | D27: 01 | E27: 03 | F27: 803 00 00 | H27: =H28+H30+H32 -> 8479
A28: 1038030001 | B28: Расходы на страхование имущества, находящегося в государственной собственности Московской области | C28: 001 | D28: 01 | E28: 03 | F28: 803 00 01 | H28: =H29 -> 7300
A29: 1038030001013 | B29: Прочие расходы | C29: 001 | D29: 01 | E29: 03 | F29: 803 00 01 | G29: 013 | H29: 7300
A30: 1038030003 | B30: Расходы на обязательное страхование гражданской ответственности владельцев транспортных средств | C30: 001 | D30: 01 | E30: 03 | F30: 803 00 03 | H30: =H31 -> 1055
A31: 1038030003013 | B31: Прочие расходы | C31: 001 | D31: 01 | E31: 03 | F31: 803 00 03 | G31: 013 | H31: 1055
A32: 1038030004 | B32: Расходы на добровольное страхование гражданской ответственности владельцев транспортных средств | C32: 001 | D32: 01 | E32: 03 | F32: 803 00 04 | H32: =H33 -> 124
A33: 1038030004013 | B33: Прочие расходы | C33: 001 | D33: 01 | E33: 03 | F33: 803 00 04 | G33: 013 | H33: 124
A34: 114 | B34: Другие общегосударственные вопросы | C34: 001 | D34: 01 | E34: 14 | H34: =H35 -> 12085
A35: 114001 | B35: Руководство и управление в сфере установленных функций | C35: 001 | D35: 01 | E35: 14 | F35: 001 00 00 | H35: =H36+H38+H40 -> 12085
A36: 11400112 | B36: Члены Совета Федерации и их помощники | C36: 001 | D36: 01 | E36: 14 | F36: 001 12 00 | H36: =H37 -> 364
A37: 11400112012 | B37: Выполнение функций государственными органами | C37: 001 | D37: 01 | E37: 14 | F37: 001 12 00 | G37: 012 | H37: 364
A38: 11400161 | B38: Расходы, связанные с выплатой Премии Московской областной Думы | C38: 001 | D38: 01 | E38: 14 | F38: 001 61 00 | H38: =H39 -> 8621
A39: 11400161013 | B39: Прочие расходы | C39: 001 | D39: 01 | E39: 14 | F39: 001 61 00 | G39: 013 | H39: =8621-8621+8621 -> 8621
A40: 11400162 | B40: Расходы на выплату премий победителям конкурсов профессионального мастерства и награждения ценными подарками в связи с проведение профессиональных праздников | C40: 001 | D40: 01 | E40: 14 | F40: 001 62 00 | H40: =H41 -> 3100
A41: 11400162013 | B41: Прочие расходы | C41: 001 | D41: 01 | E41: 14 | F41: 001 62 00 | G41: 013 | H41: 3100
A42: 5 | B42: Жилищно-коммунальное хозяйство | C42: 001 | D42: 05 | H42: =H43 -> 65000
A43: 501 | B43: Жилищное хозяйство | C43: 001 | D43: 05 | E43: 01 | H43: =H44 -> 65000
A44: 501350 | B44: Поддержка жилищного хозяйства | C44: 001 | D44: 05 | E44: 01 | F44: 350 00 00 | H44: =H45 -> 65000
A45: 50135003 | B45: Мероприятия в области жилищного хозяйства | C45: 001 | D45: 05 | E45: 01 | F45: 350 03 00 | H45: =H46 -> 65000
A46: 50135003012 | B46: Выполнение функций государственными органами | C46: 001 | D46: 05 | E46: 01 | F46: 350 03 00 | G46: 012 | H46: 65000
A47: 7 | B47: Образование | C47: 001 | D47: 07 | H47: =H48 -> 450
A48: 707 | B48: Молодежная политика и оздоровление детей | C48: 001 | D48: 07 | E48: 07 | H48: =H49 -> 450
A49: 707432 | B49: Мероприятия по проведению оздоровительной кампании детей | C49: 001 | D49: 07 | E49: 07 | F49: 432 00 00 | H49: =H50 -> 450
A50: 70743202 | B50: Оздоровление детей | C50: 001 | D50: 07 | E50: 07 | F50: 432 02 00 | H50: =H51 -> 450
A51: 70743202001 | B51: Выполнение функций бюджетными учреждениями | C51: 001 | D51: 07 | E51: 07 | F51: 432 02 00 | G51: 001 | H51: 450
A52: 9 | B52: Здравоохранение, физическая культура и спорт | C52: 001 | D52: 09 | H52: =H53 -> 42649
A53: 910 | B53: Другие вопросы в области здравоохранения, физической культуры и спорта | C53: 001 | D53: 09 | E53: 10 | H53: =H54 -> 42649
A54: 910485 | B54: Реализация государственных функций в области здравоохранения, спорта и туризма | C54: 001 | D54: 09 | E54: 10 | F54: 485 00 00 | H54: =H55 -> 42649
A55: 91048597 | B55: Мероприятия в области здравохранения, спорта и физической культуры, туризма | C55: 001 | D55: 09 | E55: 10 | F55: 485 97 00 | H55: =H56 -> 42649
A56: 91048597079 | B56: Мероприятия в области здравоохранения, спорта и физической культуры | C56: 001 | D56: 09 | E56: 10 | F56: 485 97 00 | G56: 079 | H56: 42649
A58: 0 | B58: Правительство Московской области | C58: 002 | H58: =H59+H87+H92+H97 -> 2730114
A59: 1 | B59: Общегосударственные вопросы | C59: 002 | D59: 01 | H59: =H60+H64+H70 -> 1958797
A60: 102 | B60: Функционирование высшего должностного лица субъекта Российской Федерации и муниципального образования | C60: 002 | D60: 01 | E60: 02 | H60: =H61 -> 2114
A61: 102002 | B61: Руководство и управление в сфере установленных функций органов государственной власти субъектов Российской Федерации и органов местного самоуправления | C61: 002 | D61: 01 | E61: 02 | F61: 002 00 00 | H61: =H62 -> 2114
A62: 10200201 | B62: Высшее должностное лицо субъекта Российской Федерации | C62: 002 | D62: 01 | E62: 02 | F62: 002 01 00 | H62: =H63 -> 2114
A63: 10200201012 | B63: Выполнение функций государственными органами | C63: 002 | D63: 01 | E63: 02 | F63: 002 01 00 | G63: 012 | H63: 2114
A64: 104 | B64: Функционирование Правительства Российской Федерации, высших исполнительных органов государственной власти субъектов Российской Федерации, местных администраций | C64: 002 | D64: 01 | E64: 04 | H64: =H65 -> 902951
A65: 104002 | B65: Руководство и управление в сфере установленных функций органов государственной власти субъектов Российской Федерации и органов местного самоуправления | C65: 002 | D65: 01 | E65: 04 | F65: 002 00 00 | H65: =H66+H68 -> 902951
A66: 10400204 | B66: Центральный аппарат | C66: 002 | D66: 01 | E66: 04 | F66: 002 04 00 | H66: =H67 -> 886096
A67: 10400204012 | B67: Выполнение функций государственными органами | C67: 002 | D67: 01 | E67: 04 | F67: 002 04 00 | G67: 012 | H67: 886096
A68: 10400206 | B68: Высшее должностное лицо субъекта Российской Федерации (руководитель высшего исполнительного органа государственной власти субъекта Российской Федерации) и его заместители | C68: 002 | D68: 01 | E68: 04 | F68: 002 06 00 | H68: =H69 -> 16855
A69: 10400206012 | B69: Выполнение функций государственными органами | C69: 002 | D69: 01 | E69: 04 | F69: 002 06 00 | G69: 012 | H69: 16855
A70: 114 | B70: Другие общегосударственные вопросы | C70: 002 | D70: 01 | E70: 14 | H70: =H71+H82 -> 1053732
A71: 114001 | B71: Руководство и управление в сфере установленных функций | C71: 002 | D71: 01 | E71: 14 | F71: 001 00 00 | H71: =H72+H74+H76+H78+H80 -> 26458
A72: 11400110 | B72: Депутаты Государственной Думы и их помощники | C72: 002 | D72: 01 | E72: 14 | F72: 001 10 00 | H72: =H73 -> 20804
A73: 11400110012 | B73: Выполнение функций государственными органами | C73: 002 | D73: 01 | E73: 14 | F73: 001 10 00 | G73: 012 | H73: 20804
A74: 11400112 | B74: Члены Совета Федерации и их помощники | C74: 002 | D74: 01 | E74: 14 | F74: 001 12 00 | H74: =H75 -> 484
A75: 11400112012 | B75: Выполнение функций государственными органами | C75: 002 | D75: 01 | E75: 14 | F75: 001 12 00 | G75: 012 | H75: 484
A76: 11400163 | B76: Расходы на выплату Премии Губернатора Московской области | C76: 002 | D76: 01 | E76: 14 | F76: 001 63 00 | H76: =H77 -> 2000
A77: 11400163013 | B77: Прочие расходы | C77: 002 | D77: 01 | E77: 14 | F77: 001 63 00 | G77: 013 | H77: 2000
A78: 11400164 | B78: Взносы Московской области в общественные организации, фонды, ассоциации | C78: 002 | D78: 01 | E78: 14 | F78: 001 64 00 | H78: =H79 -> 600
A79: 11400164013 | B79: Прочие расходы | C79: 002 | D79: 01 | E79: 14 | F79: 001 64 00 | G79: 013 | H79: 600
A80: 11400165 | B80: Расходы на реализацию Закона Московской области "О наградах Московской области" | C80: 002 | D80: 01 | E80: 14 | F80: 001 65 00 | H80: =H81 -> 2570
A81: 11400165013 | B81: Прочие расходы | C81: 002 | D81: 01 | E81: 14 | F81: 001 65 00 | G81: 013 | H81: 2570
A82: 114093 | B82: Учреждения по обеспечению хозяйственного обслуживания | C82: 002 | D82: 01 | E82: 14 | F82: 093 00 00 | H82: =H83+H85 -> 1027274
A83: 11409310 | B83: Обеспечение эксплуатации и надлежащего содержания зданий и помещений, занимаемых Правительством Московской области | C83: 002 | D83: 01 | E83: 14 | F83: 093 10 00 | H83: =H84 -> 27274
A84: 11409310001 | B84: Выполнение функций бюджетными учреждениями | C84: 002 | D84: 01 | E84: 14 | F84: 093 10 00 | G84: 001 | H84: 27274
A85: 11409311 | B85: Обеспечение эксплуатации и надлежащего содержания зданий и помещений, занимаемых органами исполнительной власти Московской области | C85: 002 | D85: 01 | E85: 14 | F85: 093 11 00 | H85: =H86 -> 1000000
A86: 11409311001 | B86: Выполнение функций бюджетными учреждениями | C86: 002 | D86: 01 | E86: 14 | F86: 093 11 00 | G86: 001 | H86: 1000000
A87: 5 | B87: Жилищно - коммунальное хозяйство | C87: 002 | D87: 05 | H87: =H88 -> 400000
A88: 501 | B88: Жилищное хозяйство | C88: 002 | D88: 05 | E88: 01 | H88: =H89 -> 400000
A89: 501350 | B89: Поддержка жилищного хозяйства | C89: 002 | D89: 05 | E89: 01 | F89: 350 00 00 | H89: =H90 -> 400000
A90: 50135003 | B90: Мероприятия в области жилищного хозяйства | C90: 002 | D90: 05 | E90: 01 | F90: 350 03 00 | H90: =H91 -> 400000
A91: 50135003012 | B91: Выполнение функций государственными органами | C91: 002 | D91: 05 | E91: 01 | F91: 350 03 00 | G91: 012 | H91: 400000
A92: 7 | B92: Образование | C92: 002 | D92: 07 | H92: =H93 -> 2104
A93: 707 | B93: Молодежная политика и оздоровление детей | C93: 002 | D93: 07 | E93: 07 | H93: =H94 -> 2104
A94: 707432 | B94: Мероприятия по проведению оздоровительной кампании детей | C94: 002 | D94: 07 | E94: 07 | F94: 432 00 00 | H94: =H95 -> 2104
A95: 70743202 | B95: Оздоровление детей | C95: 002 | D95: 07 | E95: 07 | F95: 432 02 00 | H95: =H96 -> 2104
A96: 70743202001 | B96: Выполнение функций бюджетными учреждениями | C96: 002 | D96: 07 | E96: 07 | F96: 432 02 00 | G96: 001 | H96: 2104
A97: 9 | B97: Здравоохранение, физическая культура и спорт | C97: 002 | D97: 09 | H97: =H98 -> 369213
A98: 910 | B98: Другие вопросы в области здравоохранения, физической культуры и спорта | C98: 002 | D98: 09 | E98: 10 | H98: =H99 -> 369213
A99: 910485 | B99: Реализация государственных функций в области здравоохранения, спорта и туризма | C99: 002 | D99: 09 | E99: 10 | F99: 485 00 00 | H99: =H100 -> 369213
A100: 91048597 | B100: Мероприятия в области здравохранения, спорта и физической культуры, туризма | C100: 002 | D100: 09 | E100: 10 | F100: 485 97 00 | H100: =H101 -> 369213
A101: 91048597079 | B101: Мероприятия в области здравоохранения, спорта и физической культуры | C101: 002 | D101: 09 | E101: 10 | F101: 485 97 00 | G101: 079 | H101: 369213
A103: 0 | B103: Министерство внешнеэкономических связей Московской области | C103: 003 | H103: =H104+H116+H121+H126 -> 287272
A104: 1 | B104: Общегосударственные вопросы | C104: 003 | D104: 01 | H104: =H105+H112 -> 286941
A105: 108 | B105: Международные отношения и международное сотрудничество | C105: 003 | D105: 01 | E105: 08 | H105: =H106+H109 -> 200130
A106: 108030 | B106: Международное сотрудничество | C106: 003 | D106: 01 | E106: 08 | F106: 030 00 00 | H106: =H107 -> 200000
A107: 10803005 | B107: Прочие расходы, связанные с международной деятельностью | C107: 003 | D107: 01 | E107: 08 | F107: 030 05 00 | H107: =H108 -> 200000
A108: 10803005012 | B108: Выполнение функций государственными органами | C108: 003 | D108: 01 | E108: 08 | F108: 030 05 00 | G108: 012 | H108: 200000
A109: 108522 | B109: Региональные целевые программы | C109: 003 | D109: 01 | E109: 08 | F109: 522 00 00 | H109: =H110 -> 130
A110: 10852209 | B110: Областная целевая программа "Поддержка Московской областью соотечественников за рубежом на 2007-2010 годы" | C110: 003 | D110: 01 | E110: 08 | F110: 522 09 00 | H110: =H111 -> 130
A111: 10852209012 | B111: Выполнение функций государственными органами | C111: 003 | D111: 01 | E111: 08 | F111: 522 09 00 | G111: 012 | H111: 130
A112: 114 | B112: Другие общегосударственные вопросы | C112: 003 | D112: 01 | E112: 14 | H112: =H113 -> 86811
A113: 114002 | B113: Руководство и управление в сфере установленных функций органов государственной власти субъектов Российской Федерации и органов местного самоуправления | C113: 003 | D113: 01 | E113: 14 | F113: 002 00 00 | H113: =H114 -> 86811
A114: 11400204 | B114: Центральный аппарат | C114: 003 | D114: 01 | E114: 14 | F114: 002 04 00 | H114: =H115 -> 86811
A115: 11400204012 | B115: Выполнение функций государственными органами | C115: 003 | D115: 01 | E115: 14 | F115: 002 04 00 | G115: 012 | H115: 86811
A116: 2 | B116: Национальная оборона | C116: 003 | D116: 02 | H116: =H117 -> 200
A117: 204 | B117: Мобилизационная подготовка экономики | C117: 003 | D117: 02 | E117: 04 | H117: =H118 -> 200
A118: 204209 | B118: Реализация государственных функций по мобилизационной подготовке экономики | C118: 003 | D118: 02 | E118: 04 | F118: 209 00 00 | H118: =H119 -> 200
A119: 20420901 | B119: Мероприятия по обеспечению мобилизационной готовности экономики | C119: 003 | D119: 02 | E119: 04 | F119: 209 01 00 | H119: =H120 -> 200
A120: 20420901012 | B120: Выполнение функций государственными органами | C120: 003 | D120: 02 | E120: 04 | F120: 209 01 00 | G120: 012 | H120: 200
A121: 3 | B121: Национальная безопасность и правоохранительная деятельность | C121: 003 | D121: 03 | H121: =H122+H131 -> 69
A122: 309 | B122: Защита населения и территории от последствий чрезвычайных ситуаций природного и техногенного характера, гражданская оборона | C122: 003 | D122: 03 | E122: 09 | H122: =H123 -> 69
A123: 309219 | B123: Мероприятия по гражданской обороне | C123: 003 | D123: 03 | E123: 09 | F123: 219 00 00 | H123: =H124 -> 69
A124: 30921901 | B124: Подготовка населения и организаций к действиям в чрезвычайной ситуации в мирное и военное время | C124: 003 | D124: 03 | E124: 09 | F124: 219 01 00 | H124: =H125 -> 69
A125: 30921901012 | B125: Выполнение функций государственными органами | C125: 003 | D125: 03 | E125: 09 | F125: 219 01 00 | G125: 012 | H125: 69
A126: 7 | B126: Образование | C126: 003 | D126: 07 | H126: =H127 -> 62
A127: 707 | B127: Молодежная политика и оздоровление детей | C127: 003 | D127: 07 | E127: 07 | H127: =H128 -> 62
A128: 707432 | B128: Мероприятия по проведению оздоровительной кампании детей | C128: 003 | D128: 07 | E128: 07 | F128: 432 00 00 | H128: =H129 -> 62
A129: 70743202 | B129: Оздоровление детей | C129: 003 | D129: 07 | E129: 07 | F129: 432 02 00 | H129: =H130 -> 62
A130: 70743202001 | B130: Выполнение функций бюджетными учреждениями | C130: 003 | D130: 07 | E130: 07 | F130: 432 02 00 | G130: 001 | H130: 62
A132: 0 | B132: Министерство жилищно-коммунального хозяйства Московской области | C132: 004 | H132: =H133+H138+H143+H148+H170 -> 1381721
A133: 2 | B133: Национальная оборона | C133: 004 | D133: 02 | H133: =H134 -> 200
A134: 204 | B134: Мобилизационная подготовка экономики | C134: 004 | D134: 02 | E134: 04 | H134: =H135 -> 200
A135: 204209 | B135: Реализация государственных функций по мобилизационной подготовке экономики | C135: 004 | D135: 02 | E135: 04 | F135: 209 00 00 | H135: =H136 -> 200
A136: 20420901 | B136: Мероприятия по обеспечению мобилизационной готовности экономики | C136: 004 | D136: 02 | E136: 04 | F136: 209 01 00 | H136: =H137 -> 200
A137: 20420901012 | B137: Выполнение функций государственными органами | C137: 004 | D137: 02 | E137: 04 | F137: 209 01 00 | G137: 012 | H137: 200
A138: 3 | B138: Национальная безопасность и правоохранительная деятельность | C138: 004 | D138: 03 | H138: =H139 -> 78
A139: 309 | B139: Защита населения и территории от последствий чрезвычайных ситуаций природного и техногенного характера, гражданская оборона | C139: 004 | D139: 03 | E139: 09 | H139: =H140 -> 78
A140: 309219 | B140: Мероприятия по гражданской обороне | C140: 004 | D140: 03 | E140: 09 | F140: 219 00 00 | H140: =H141 -> 78
A141: 30921901 | B141: Подготовка населения и организаций к действиям в чрезвычайной ситуации в мирное и военное время | C141: 004 | D141: 03 | E141: 09 | F141: 219 01 00 | H141: =H142 -> 78
A142: 30921901012 | B142: Выполнение функций государственными органами | C142: 004 | D142: 03 | E142: 09 | F142: 219 01 00 | G142: 012 | H142: 78
A143: 4 | B143: Национальная экономика | C143: 004 | D143: 04 | H143: =H144 -> 500000
A144: 412 | B144: Другие вопросы в области национальной экономики | C144: 004 | D144: 04 | E144: 12 | H144: =H145 -> 500000
A145: 412340 | B145: Реализация государственных функций в области национальной экономики | C145: 004 | D145: 04 | E145: 12 | F145: 340 00 00 | H145: =H146 -> 500000
A146: 41234004 | B146: Мероприятия в области гражданской промышленности | C146: 004 | D146: 04 | E146: 12 | F146: 340 04 00 | H146: =H147 -> 500000
A147: 41234004006 | B147: Субсидии юридическим лицам | C147: 004 | D147: 04 | E147: 12 | F147: 340 04 00 | G147: 006 | H147: 500000
A148: 5 | B148: Жилищно - коммунальное хозяйство | C148: 004 | D148: 05 | H148: =H149+H157+H162 -> 881399
A149: 501 | B149: Жилищное хозяйство | C149: 004 | D149: 05 | E149: 01 | H149: =H150+H154 -> 384531
A150: 501102 | B150: Бюджетные инвестиции в объекты капитального строительства, не включенные в целевые программы | C150: 004 | D150: 05 | E150: 01 | F150: 102 00 00 | H150: =H151 -> 190153
A151: 50110201 | B151: Бюджетные инвестиции в объекты капитального строительства государственной собственности субъектов Российской Федерации (объекты капитального строительства собственности муниципальных образований) | C151: 004 | D151: 05 | E151: 01 | F151: 102 01 00 | H151: =H152 -> 190153
A152: 5011020102 | B152: Бюджетные инвестиции в объекты капитального строительства собственности муниципальных образований | C152: 004 | D152: 05 | E152: 01 | F152: 102 01 02 | H152: =H153 -> 190153
A153: 5011020102003 | B153: Бюджетные инвестиции | C153: 004 | D153: 05 | E153: 01 | F153: 102 01 02 | G153: 003 | H153: 190153
A154: 501104 | B154: Федеральная целевая программа "Жилище" на 2002 - 2010 годы (второй этап) | C154: 004 | D154: 05 | E154: 01 | F154: 104 00 00 | H154: =H155 -> 194378
A155: 50110407 | B155: Расходы общепрограммного характера по федеральной целевой программе "Жилище" на 2002 - 2010 годы (второй этап) | C155: 004 | D155: 05 | E155: 01 | F155: 104 07 00 | H155: =H156 -> 194378
A156: 50110407012 | B156: Выполнение функций государственными органами | C156: 004 | D156: 05 | E156: 01 | F156: 104 07 00 | G156: 012 | H156: 194378
A157: 502 | B157: Коммунальное хозяйство | C157: 004 | D157: 05 | E157: 02 | H157: =H158 -> 143500
A158: 502522 | B158: Региональные целевые программы | C158: 004 | D158: 05 | E158: 02 | F158: 522 00 00 | H158: =H159 -> 143500
A159: 50252201 | B159: Областная целевая программа "Экология Подмосковья на 2007-2008 годы" | C159: 004 | D159: 05 | E159: 02 | F159: 522 01 00 | H159: =H160 -> 143500
A160: 5025220102 | B160: Подпрограмма "Строительство и реконструкция природоохранных объектов коммунального назначения" | C160: 004 | D160: 05 | E160: 02 | F160: 522 01 02 | H160: =H161 -> 143500
A161: 5025220102003 | B161: Бюджетные инвестиции | C161: 004 | D161: 05 | E161: 02 | F161: 522 01 02 | G161: 003 | H161: 143500
A162: 505 | B162: Другие вопросы в области жилищно-коммунального хозяйства | C162: 004 | D162: 05 | E162: 05 | H162: =H163+H168 -> 353368
A163: 505002 | B163: Руководство и управление в сфере установленных функций органов государственной власти субъектов Российской Федерации и органов местного самоуправления | C163: 004 | D163: 05 | E163: 05 | F163: 002 00 00 | H163: =H164+H166 -> 346710
A164: 50500204 | B164: Центральный аппарат | C164: 004 | D164: 05 | E164: 05 | F164: 002 04 00 | H164: =H165 -> 205458
A165: 50500204012 | B165: Выполнение функций государственными органами | C165: 004 | D165: 05 | E165: 05 | F165: 002 04 00 | G165: 012 | H165: =182658+22800 -> 205458
A166: 50500299 | B166: Обеспечение деятельности подведомственных учреждений | C166: 004 | D166: 05 | E166: 05 | F166: 002 99 00 | H166: =H167 -> 141252
A167: 50500299001 | B167: Выполнение функций бюджетными учреждениями | C167: 004 | D167: 05 | E167: 05 | F167: 002 99 00 | G167: 001 | H167: 141252
A168: 505806 | B168: Прочие расходы, не отнесенные к другим целевым статьям | C168: 004 | D168: 05 | E168: 05 | F168: 806 00 00 | H168: =H169 -> 6658
A169: 505806006 | B169: Субсидии юридическим лицам | C169: 004 | D169: 05 | E169: 05 | F169: 806 00 00 | G169: 006 | H169: 6658
A170: 7 | B170: Образование | C170: 004 | D170: 07 | H170: =H171 -> 44
A171: 707 | B171: Молодежная политика и оздоровление детей | C171: 004 | D171: 07 | E171: 07 | H171: =H172 -> 44
A172: 707432 | B172: Мероприятия по проведению оздоровительной кампании детей | C172: 004 | D172: 07 | E172: 07 | F172: 432 00 00 | H172: =H173 -> 44
A173: 70743202 | B173: Оздоровление детей | C173: 004 | D173: 07 | E173: 07 | F173: 432 02 00 | H173: =H174 -> 44
A174: 70743202001 | B174: Выполнение функций бюджетными учреждениями | C174: 004 | D174: 07 | E174: 07 | F174: 432 02 00 | G174: 001 | H174: 44
A176: 0 | B176: Министерство промышленности и науки Московской области | C176: 005 | H176: =H177+H182+H187+H192+H211 -> 226908
A177: 1 | B177: Общегосударственные вопросы | C177: 005 | D177: 01 | H177: =H178 -> 72
A178: 114 | B178: Другие общегосударственные вопросы | C178: 005 | D178: 01 | E178: 14 | H178: =H179 -> 72
A179: 114001 | B179: Руководство и управление в сфере установленных функций | C179: 005 | D179: 01 | E179: 14 | F179: 001 00 00 | H179: =H180 -> 72
A180: 11400164 | B180: Взносы Московской области в общественные организации, фонды, ассоциации | C180: 005 | D180: 01 | E180: 14 | F180: 001 64 00 | H180: =H181 -> 72
A181: 11400164013 | B181: Прочие расходы | C181: 005 | D181: 01 | E181: 14 | F181: 001 64 00 | G181: 013 | H181: 72
A182: 2 | B182: Национальная оборона | C182: 005 | D182: 02 | H182: =H183 -> 750
A183: 204 | B183: Мобилизационная подготовка экономики | C183: 005 | D183: 02 | E183: 04 | H183: =H184 -> 750
A184: 204209 | B184: Реализация государственных функций по мобилизационной подготовке экономики | C184: 005 | D184: 02 | E184: 04 | F184: 209 00 00 | H184: =H185 -> 750
A185: 20420901 | B185: Мероприятия по обеспечению мобилизационной готовности экономики | C185: 005 | D185: 02 | E185: 04 | F185: 209 01 00 | H185: =H186 -> 750
A186: 20420901012 | B186: Выполнение функций государственными органами | C186: 005 | D186: 02 | E186: 04 | F186: 209 01 00 | G186: 012 | H186: 750
A187: 3 | B187: Национальная безопасность и правоохранительная деятельность | C187: 005 | D187: 03 | H187: =H188 -> 615
A188: 309 | B188: Защита населения и территории от последствий чрезвычайных ситуаций природного и техногенного характера, гражданская оборона | C188: 005 | D188: 03 | E188: 09 | H188: =H189 -> 615
A189: 309219 | B189: Мероприятия по гражданской обороне | C189: 005 | D189: 03 | E189: 09 | F189: 219 00 00 | H189: =H190 -> 615
A190: 30921901 | B190: Подготовка населения и организаций к действиям в чрезвычайной ситуации в мирное и военное время | C190: 005 | D190: 03 | E190: 09 | F190: 219 01 00 | H190: =H191 -> 615
A191: 30921901012 | B191: Выполнение функций государственными органами | C191: 005 | D191: 03 | E191: 09 | F191: 219 01 00 | G191: 012 | H191: 615
A192: 4 | B192: Национальная экономика | C192: 005 | D192: 04 | H192: =H193+H198+H202 -> 225371
A193: 401 | B193: Общеэкономические вопросы | C193: 005 | D193: 04 | E193: 01 | H193: =H194 -> 120224
A194: 401002 | B194: Руководство и управление в сфере установленных функций органов государственной власти субъектов Российской Федерации и органов местного самоуправления | C194: 005 | D194: 04 | E194: 01 | F194: 002 00 00 | H194: =H195 -> 120224
A195: 40100204 | B195: Центральный аппарат | C195: 005 | D195: 04 | E195: 01 | F195: 002 04 00 | H195: =H196+H197 -> 120224
A196: 40100204012 | B196: Выполнение функций государственными органами | C196: 005 | D196: 04 | E196: 01 | F196: 002 04 00 | G196: 012 | H196: 119724
A197: 40100204902 | B197: Проведение мероприятий по защите информации, обеспечению безопасности информационных систем и баз данных, содержащих конфиденциальную информацию, в том числе персональные данные населения Московской области | C197: 005 | D197: 04 | E197: 01 | F197: 002 04 00 | G197: 902 | H197: 500
A198: 411 | B198: Прикладные научные исследования в области национальной экономики | C198: 005 | D198: 04 | E198: 11 | H198: =H199 -> 53000
A199: 411081 | B199: Прикладные научные исследования и разработки | C199: 005 | D199: 04 | E199: 11 | F199: 081 00 00 | H199: =H200 -> 53000
A200: 41108169 | B200: Выполнение научно- исследовательских и опытно-конструкторских работ по государственным контрактам | C200: 005 | D200: 04 | E200: 11 | F200: 081 69 00 | H200: =H201 -> 53000
A201: 41108169012 | B201: Выполнение функций государственными органами | C201: 005 | D201: 04 | E201: 11 | F201: 081 69 00 | G201: 012 | H201: 53000
A202: 412 | B202: Другие вопросы в области национальной экономики | C202: 005 | D202: 04 | E202: 12 | H202: =H203 -> 52147
A203: 412340 | B203: Реализация государственных функций в области национальной экономики | C203: 005 | D203: 04 | E203: 12 | F203: 340 00 00 | H203: =H204 -> 52147
A204: 41234083 | B204: Государственная поддержка отдельных отраслей промышленности и топливно-энергетического комплекса | C204: 005 | D204: 04 | E204: 12 | F204: 340 83 00 | H204: =H205+H207+H209 -> 52147
A205: 4123408303 | B205: Субсидии организациям легкой и текстильной промышленности на возмещение части затрат на уплату процентов по кредитам, полученным в российских кредитных организациях в 2007-2010 годах, на осуществление сезонных закупок сырья и материалов для производства товаров народного потребления и продукции производственно-технического назначения | C205: 005 | D205: 04 | E205: 12 | F205: 340 83 03 | H205: =H206 -> 40000
A206: 4123408303006 | B206: Субсидии юридическим лицам | C206: 005 | D206: 04 | E206: 12 | F206: 340 83 03 | G206: 006 | H206: 40000
A207: 4123408304 | B207: Субсидии организациям легкой и текстильной промышленности на возмещение части затрат на уплату процентов по кредитам, полученным в российских кредитных организациях в 2008-2010 годах, на осуществление технического перевооружения | C207: 005 | D207: 04 | E207: 12 | F207: 340 83 04 | H207: =H208 -> 10000
A208: 4123408304006 | B208: Субсидии юридическим лицам | C208: 005 | D208: 04 | E208: 12 | F208: 340 83 04 | G208: 006 | H208: 10000
A209: 4123408320 | B209: Расходы на проведение мероприятий, общегосударственных праздников и юбилейных дат Московской области в области промышленности | C209: 005 | D209: 04 | E209: 12 | F209: 340 83 20 | H209: =H210 -> 2147
... 2361 more rows

Sheet коды (hidden)
A2: ЦСР | D2: ВР
D3: 901 | E3: Взносы Московской области в общественные организации, фонды, ассоциации
D4: 701-823 | E4: Софинансирование дорожных объектов
A5: 802 00 00 | B5: Прочие учреждения в области образования | D5: 902 | E5: Проведение мероприятий по защите информации, обеспечению безопасности информационных систем и баз данных, содержащих конфиденциальную информацию, в том числе персональные данные населения Московской области
A6: 803 00 00 | B6: Расходы на страхование | D6: 903 | E6: Бюджетные инвестиции в объекты капитального строительства собственности муниципальных образований, софинансирование которых осуществляется за счет средств федерального бюджета
A7: 803 00 01 | B7: Расходы на страхование имущества, находящегося в государственной собственности Московской области | D7: 904 | E7: Обеспечение деятельности подразделений УГИБДД ГУВД по Московской области
A8: 803 00 02 | B8: Расходы на страхование гражданской ответственности учреждений, находящихся в государственной собственности Московской области | D8: 905 | E8: Страховые взносы по обязательному медицинскому страхованию неработающего населения
A9: 803 00 03 | B9: Расходы на обязательное страхование гражданской ответственности владельцев транспортных средств | D9: 906 | E9: Работы по гидрометеорологии и мониторингу окружающей среды
A10: 803 00 04 | B10: Расходы на добровольное страхование гражданской ответственности владельцев транспортных средств | D10: 907 | E10: Проведение государственной экологической экспертизы объектов регионального уровня на территории Московской области
A11: 803 00 05 | B11: Расходы на страхование жизни и здоровья медицинских, фармацевтических и других работников государственных учреждений здравоохранения Московской области, работа которых связана с угрозой их жизни и здоровью | D11: 908 | E11: Софинансирование строительства объектов газификации собственности муниципальных образований
A12: 803 00 06 | B12: Расходы на страхование жизни и здоровья членов сборных команд Московской области | D12: 909 | E12: Софинансирование строительства объектов водоснабжения собственности муниципальных образований
A13: 803 00 07 | B13: Расходы на страхование на случай причинения вреда жизни и здоровью лиц, замещающих государственные должности Московской области и государственных гражданских служащих Московской области | D13: 910 | E13: Финансирование расходов, осуществляемое за счет средств, поступающих от сдачи в аренду имущества, закрепленного за государственными организациями
A14: 804 00 00 | B14: Приобретение земельных участков в государственную собственность Московской области | D14: 917 | E14: Субсидии на возмещение за счет средств фонда стимулирования организаций легкой и текстильной промышленности, состоящих на учете в налоговых органах по Московской области, части процентных ставок по кредитам, предоставляемых российскими кредитными организациями
A15: 806 00 00 | B15: Прочие расходы, не отнесенные к другим целевым статьям | D15: 919 | E15: Финансирование транспортным организациям выпадающих доходов, возникающих в связи с предоставлением мер социальной поддержки по проезду отдельных категорий граждан, имеющих место жительства в Московской области, за исключением ветеранов труда, тружеников тыла, реабилитированных лиц и лиц, признанных пострадавшими от политических репрессий, финансирование выпадающих доходов по перевозке отдельных категорий граждан на внутреннем водном транспорте пригородного сообщения
A16: 806 01 00 | B16: Подготовка врачебных кадров | D16: 921 | E16: Финансирование транспортным организациям выпадающих доходов, возникающих в связи с реализацией мер социальной поддержки в части транспортного обслуживания отдельных категорий граждан, имеющих место жительства в городе Москве, паасажирским транспортом общего пользования Московской области
A17: 806 02 00 | B17: Подготовка кадров в сфере культуры и искусства
A18: 806 00 30 | B18: Создание финансового резерва для обеспечения выплаты дополнительных пенсий работникам государственных учреждений Московской области, вышедшим на пенсию
A19: 806 00 31 | B19: Компенсация расходов адвокатам, оказывающим гражданам Российской Федерации на территории Московской области юридическую помощь бесплатно
A20: 806 00 32 | B20: Проведение мероприятий в сфере социальной защиты населения, посвященных знаменательным событиям и памятным датам, установленным в Российской Федерации и Московской области
A21: 806 00 33 | B21: Возмещение стоимости услуг, согласно гарантированному перечню услуг по погребению умерших
A22: 807 00 00 | B22: Меры социальной поддержки по обеспечению проездом граждан
A23: 808 00 00 | B23: Расходы на оценку имущества, подлежащего страхованию
A24: 522 01 00 | B24: Областная целевая программа "Экология Подмосковья на 2007-2008 годы"
A25: 522 02 00 | B25: Областная целевая программа "Жилище" на 2006-2010 годы
A26: 522 02 01 | B26: Подпрограмма "Модернизация объектов коммунальной инфраструктуры"
A27: 522 02 02 | B27: Подпрограмма "Переселение граждан из ветхого и аварийного жилищного фонда"
A28: 522 02 03 | B28: Подпрограмма "Обеспечение земельных участков коммунальной инфраструктурой в целях жилищного строительства"
A29: 522 02 04 | B29: Подпрограмма "Обеспечение жильем молодых семей"
A30: 522 03 00 | B30: Областная целевая программа "Разработка Генерального плана развития Московской области на период до 2020 года"
A31: 522 04 00 | B31: Областная целевая программа "Электронное Подмосковье на период 2006-2009 годы"
A32: 522 05 00 | B32: Областная целевая программа "Сохранение объектов культурного наследия (памятников истории и культуры) в Московской области на 2006-2008 годы"
A33: 522 05 01 | B33: Раздел 1 "Сохранение объектов культурного наследия"
A34: 522 05 02 | B34: Раздел 2 "Государственная охрана объектов культурного наследия"
A35: 522 05 03 | B35: Раздел 3 "Оказание поддержки религиозным организациям в проведении работ по сохранению памятников истории и культуры религиозного назначения"
A36: 522 05 04 | B36: Раздел 4 "Установка памятника создателям славянской азбуки, просветителям славянских народов, святым братьям Кириллу и Мефодию"
A37: 522 06 00 | B37: Областная целевая программа "Развитие образования в Московской области на период 2006-2010 годов"
A38: 522 07 00 | B38: Областная целевая программа "Молодое поколение Подмосковья на 2006-2008 годы"
A39: 522 08 00 | B39: Областная целевая программа "Радиационная безопасность Московской области на 2006-2010 годы"
A40: 522 09 00 | B40: Областная целевая программа "Поддержка Московской областью соотечественников за рубежом на 2007-2010 годы"
A41: 522 10 00 | B41: Областная целевая программа "Обеспечение безопасности дорожного движения на территории Московской области в 2007-2010 годах"
A42: 522 10 01 | B42: Раздел "Предупреждение опасного поведения участников дорожного движения"
A43: 522 10 02 | B43: Раздел "Организационно-планировочные и инженерные меры, направленные на совершенствование организации движения транспортных средств и пешеходов"
A44: 522 10 03 | B44: Раздел "Совершенствование системы подготовки и переподготовки водительского, ремонтного и инженерно-технического персонала"
A45: 522 10 05 | B45: Раздел "Совершенствование контрольно-надзорной деятельности и деятельности по ликвидации последствий и снижению тяжести ДТП"
A46: 522 11 00 | B46: Областная целевая программа "Совершенствование медицинской помощи новорожденным, беременным женщинам и матерям в Московской области на период 2008-2011 годов"
A47: 522 12 00 | B47: Областная целевая программа "Предупреждение и борьба с заболеваниями социального характера в Московской области на период 2008-2011 годов"
A48: 522 12 01 | B48: Подпрограмма "Сахарный диабет"
A49: 522 12 02 | B49: Подпрограмма "Неотложные меры борьбы с туберкулезом"
A50: 522 12 03 | B50: Подпрограмма "О мерах по предупреждению распространения заболевания, вызываемого вирусом иммунодефицита человека (ВИЧ - инфекции)"
A51: 522 12 04 | B51: Подпрограмма "О мерах по развитию онкологической помощи"
A52: 522 12 05 | B52: Подпрограмма "О мерах по предупреждению дальнейшего распространения заболеваний, передаваемых половым путем"
A53: 522 12 06 | B53: Подпрограмма "Вирусные гепатиты"
A54: 522 12 07 | B54: Подпрограмма "Развитие психиатрической помощи"
A55: 522 12 08 | B55: Подпрограмма "Вакцинопрофилактика"
A56: 522 12 09 | B56: Подпрограмма "Профилактика и лечение артериальной гипертонии"
A57: 522 12 10 | B57: Подпрограмма "Общая врачебная практика"

Sheet разделы (hidden)
B1: проект
A2: Код | B2: Наименование раздела и подраздела
D3: фуккцион | E3: свод
A4: 0100 | B4: ОБЩЕГОСУДАРСТВЕННЫЕ ВОПРОСЫ | C4: =SUM(C5:C18) -> 23580617 | D4: =C4-'ведом. 2019'!G16 -> 23580617 | E4: =C4-[1]свод!$E$203 -> 0
A5: 0101 | B5: Функционирование Президента Российской Федерации
A6: 0102 | B6: Функционирование высшего должностного лица субъекта Российской Федерации и муниципального образования | C6: 2114 | D6: =C6-'ведом. 2019'!G17 -> 2114
A7: 0103 | B7: Функционирование законодательных (представительных) органов государственной власти и представительных органов муниципальных образований | C7: =8479+797591 -> 806070 | D7: =C7-'ведом. 2019'!#REF! -> 
A8: 0104 | B8: Функционирование Правительства Российской Федерации, высших исполнительных органов государственной власти субъектов Российской Федерации, местных администраций | C8: 902951 | D8: =C8-'ведом. 2019'!G22 -> 902951
A9: 0105 | B9: Судебная система | C9: 1163086 | D9: =C9-'ведом. 2019'!#REF! -> 
A10: 0106 | B10: Обеспечение деятельности финансовых, налоговых и таможенных органов и органов финансового (финансово-бюджетного) надзора | C10: =5050+2170797+3000+141000 -> 2319847 | D10: =C10-'ведом. 2019'!#REF! -> 
A11: 0107 | B11: Обеспечение проведения выборов и референдумов | C11: 67921 | D11: =C11-'ведом. 2019'!#REF! -> 
A12: 0108 | B12: Международные отношения и международное сотрудничество | C12: =203700+5800 -> 209500 | D12: =C12-'ведом. 2019'!#REF! -> 
A13: 0109 | B13: Государственный материальный резерв
A14: 0110 | B14: Фундаментальные исследования
A15: 0111 | B15: Обслуживание государственного и муниципального долга | C15: 8537000 | D15: =C15-'ведом. 2019'!G696 -> 8537000
A16: 0112 | B16: Резервные фонды | C16: =1500000+55107 -> 1555107 | D16: =C16-'ведом. 2019'!G70 -> 1555107
A17: 0113 | B17: Прикладные научные исследования в области общегосударственных вопросов
A18: 0114 | B18: Другие общегосударственные вопросы | C18: =26190+27274+720000+375064+3754446+10000+3099047-8621+8621+2000+3000 -> 8017021 | D18: =C18-'ведом. 2019'!G82 -> 8017021
A20: 0200 | B20: НАЦИОНАЛЬНАЯ ОБОРОНА | C20: =SUM(C21:C29) -> 12972 | D20: =C20-'ведом. 2019'!G144 -> 12972 | E20: =C20-[1]свод!$E$204 -> 0
A21: 0201 | B21: Вооруженные Силы Российской Федерации
A22: 0202 | B22: Модернизация Вооруженных Сил Российской Федерации и воинских формирований
A23: 0203 | B23: Мобилизационная и вневойсковая подготовка
A24: 0204 | B24: Мобилизационная подготовка экономики | C24: 12972 | D24: =C24-'ведом. 2019'!#REF! -> 
A25: 0205 | B25: Подготовка и участие в обеспечении коллективной безопасности и миротворческой деятельности;
A26: 0206 | B26: Ядерно-оружейный комплекс
A27: 0207 | B27: Реализация международных обязательств в сфере военно-технического сотрудничества
A28: 0208 | B28: Прикладные научные исследования в области национальной обороны
A29: 0209 | B29: Другие вопросы в области национальной обороны
A31: 0300 | B31: НАЦИОНАЛЬНАЯ БЕЗОПАСНОСТЬ И ПРАВООХРАНИТЕЛЬНАЯ ДЕЯТЕЛЬНОСТЬ | C31: =SUM(C32:C45) -> 16669168 | D31: =C31-'ведом. 2019'!G159 -> 16669168 | E31: =C31-[1]свод!$E$205 -> 0
A32: 0301 | B32: Органы прокуратуры
A33: 0302 | B33: Органы внутренних дел | C33: =315585+11659394+26106 -> 12001085 | D33: =C33-'ведом. 2019'!#REF! -> 
A34: 0303 | B34: Внутренние войска
A35: 0304 | B35: Органы юстиции
A36: 0305 | B36: Система исполнения наказаний | C36: 177958 | D36: =C36-'ведом. 2019'!#REF! -> 
A37: 0306 | B37: Органы безопасности
A38: 0307 | B38: Органы пограничной службы
A39: 0308 | B39: Органы по контролю за оборотом наркотических средств и психотропных веществ | C39: 67662 | D39: =C39-'ведом. 2019'!#REF! -> 
A40: 0309 | B40: Предупреждение и ликвидация последствий чрезвычайных ситуаций природного и техногенного характера, гражданская оборона | C40: 996190 | D40: =C40-'ведом. 2019'!G160 -> 996190
A41: 0310 | B41: Обеспечение пожарной безопасности | C41: =46851+3225689+100000+53733 -> 3426273 | D41: =C41-'ведом. 2019'!#REF! -> 
A42: 0311 | B42: Миграционная политика
A43: 0312 | B43: Модернизация внутренних войск, войск гражданской обороны, а также правоохранительных и иных органов
A44: 0313 | B44: Прикладные научные исследования в области национальной безопасности и правоохранительной деятельности
A45: 0314 | B45: Другие вопросы в области национальной безопасности и правоохранительной деятельности
A47: 0400 | B47: НАЦИОНАЛЬНАЯ ЭКОНОМИКА | C47: =SUM(C48:C59) -> 47268313 | D47: =C47-'ведом. 2019'!G284 -> 47268313 | E47: =C47-[1]свод!$E$206 -> 0
A48: 0401 | B48: Общеэкономические вопросы | C48: =449106+1060+723785 -> 1173951 | D48: =C48-'ведом. 2019'!#REF! -> 
A49: 0402 | B49: Топливно-энергетический комплекс | C49: =139180+153 -> 139333 | D49: =C49-'ведом. 2019'!#REF! -> 
A50: 0403 | B50: Исследование и использование космического пространства
A51: 0404 | B51: Воспроизводство минерально-сырьевой базы
A52: 0405 | B52: Сельское хозяйство и рыболовство | C52: =121513+1781175+10276+669+22224 -> 1935857 | D52: =C52-'ведом. 2019'!#REF! -> 
A53: 0406 | B53: Водные ресурсы | C53: 36721 | D53: =C53-'ведом. 2019'!#REF! -> 
A54: 0407 | B54: Лесное хозяйство
A55: 0408 | B55: Транспорт | C55: =1712331+442920 -> 2155251 | D55: =C55-'ведом. 2019'!G285 -> 2155251
A56: 0409 | B56: Дорожное хозяйство | C56: 35016518 | D56: =C56-'ведом. 2019'!#REF! -> 
A57: 0410 | B57: Связь и информатика | C57: =391523+82000 -> 473523 | D57: =C57-'ведом. 2019'!#REF! -> 
A58: 0411 | B58: Прикладные научные исследования в области национальной экономики | C58: =101000+19000 -> 120000 | D58: =C58-'ведом. 2019'!#REF! -> 
A59: 0412 | B59: Другие вопросы в области национальной экономики | C59: =10506+256+53397+1278437+377300+3110389+6896+537478+800000+42500 -> 6217159 | D59: =C59-'ведом. 2019'!#REF! -> 
A61: 0500 | B61: ЖИЛИЩНО-КОММУНАЛЬНОЕ ХОЗЯЙСТВО | C61: =SUM(C62:C66) -> 2711709 | D61: =C61-'ведом. 2019'!#REF! ->  | E61: =C61-[1]свод!$E$207 -> 0
A62: 0501 | B62: Жилищное хозяйство | C62: =659378+190153 -> 849531 | D62: =C62-'ведом. 2019'!#REF! -> 
A63: 0502 | B63: Коммунальное хозяйство | C63: =371840+283200+143500 -> 798540 | D63: =C63-'ведом. 2019'!#REF! -> 
A64: 0503 | B64: Благоустройство
A65: 0504 | B65: Прикладные научные исследования в области жилищно- коммунального хозяйства
A66: 0505 | B66: Другие вопросы в области жилищно-коммунального хозяйства | C66: =500+3969+147910+888459+22800 -> 1063638 | D66: =C66-'ведом. 2019'!#REF! -> 
A68: 0600 | B68: ОХРАНА ОКРУЖАЮЩЕЙ СРЕДЫ | C68: =SUM(C69:C73) -> 487816 | D68: =C68-'ведом. 2019'!#REF! ->  | E68: =C68-[1]свод!$E$208 -> 0
A69: 0601 | B69: Экологический контроль
A70: 0602 | B70: Сбор, удаление отходов и очистка сточных вод
A71: 0603 | B71: Охрана объектов растительного и животного мира и среды их обитания | C71: =5794-669 -> 5125 | D71: =C71-'ведом. 2019'!#REF! -> 
A72: 0604 | B72: Прикладные научные исследования в области охраны окружающей среды
A73: 0605 | B73: Другие вопросы в области охраны окружающей среды | C73: =850+190719+291122 -> 482691 | D73: =C73-'ведом. 2019'!#REF! -> 
A75: 0700 | B75: ОБРАЗОВАНИЕ | C75: =SUM(C76:C84) -> 15977562 | D75: =C75-'ведом. 2019'!G477 -> 15977562 | E75: =C75-[1]свод!$E$209 -> 0
A76: 0701 | B76: Дошкольное образование | C76: 45109 | D76: =C76-'ведом. 2019'!#REF! -> 
A77: 0702 | B77: Общее образование | C77: =16320+1579553+35000-120708 -> 1510165 | D77: =C77-'ведом. 2019'!#REF! -> 
A78: 0703 | B78: Начальное профессиональное образование | C78: 4671918 | D78: =C78-'ведом. 2019'!#REF! -> 
A79: 0704 | B79: Среднее профессиональное образование | C79: =30220+3196696+9500-18000 -> 3218416 | D79: =C79-'ведом. 2019'!#REF! -> 
A80: 0705 | B80: Профессиональная подготовка, переподготовка и повышение квалификации | C80: 419843 | D80: =C80-'ведом. 2019'!#REF! -> 
A81: 0706 | B81: Высшее и послевузовское профессиональное образование | C81: =507500+3215131 -> 3722631 | D81: =C81-'ведом. 2019'!#REF! -> 
A82: 0707 | B82: Молодежная политика и оздоровление детей | C82: =73808+458+39313+268054 -> 381633 | D82: =C82-'ведом. 2019'!G502 -> 381633
A83: 0708 | B83: Прикладные научные исследования в области образования | C83: 5625 | D83: =C83-'ведом. 2019'!#REF! -> 
A84: 0709 | B84: Другие вопросы в области образования | C84: =520+80550+787674+1057879+75599 -> 2002222 | D84: =C84-'ведом. 2019'!#REF! -> 
A86: 0800 | B86: КУЛЬТУРА, КИНЕМАТОГРАФИЯ И СРЕДСТВА МАССОВОЙ ИНФОРМАЦИИ | C86: =SUM(C87:C92) -> 4620983 | D86: =C86-'ведом. 2019'!G533 -> 4620983 | E86: =C86-[1]свод!$E$210 -> 0
A87: 0801 | B87: Культура | C87: =2049557+253950+3000 -> 2306507 | D87: =C87-'ведом. 2019'!G534 -> 2306507
A88: 0802 | B88: Кинематография
A89: 0803 | B89: Телевидение и радиовещание | C89: 915009 | D89: =C89-'ведом. 2019'!#REF! -> 
A90: 0804 | B90: Периодическая печать и издательства | C90: 482232 | D90: =C90-'ведом. 2019'!#REF! -> 
A91: 0805 | B91: Прикладные научные исследования в области культуры, кинематографии и средств массовой информации
A92: 0806 | B92: Другие вопросы в области культуры, кинематографии и средств массовой информации | C92: =1210+12189+1700+611492+290644 -> 917235 | D92: =C92-'ведом. 2019'!#REF! -> 
A94: 0900 | B94: ЗДРАВООХРАНЕНИЕ, ФИЗИЧЕСКАЯ КУЛЬТУРА И СПОРТ | C94: =SUM(C95:C104) -> 37148428 | D94: =C94-'ведом. 2019'!#REF! ->  | E94: =C94-[1]свод!$E$211 -> 0
A95: 0901 | B95: Стационарная медицинская помощь | C95: =820590+7752658+2890840+2783923 -> 14248011 | D95: =C95-'ведом. 2019'!#REF! -> 
A96: 0902 | B96: Амбулаторная помощь | C96: 662232 | D96: =C96-'ведом. 2019'!#REF! -> 
A97: 0903 | B97: Медицинская помощь в дневных стационарах всех типов
A98: 0904 | B98: Скорая медицинская помощь
A99: 0905 | B99: Санаторно-оздоровительная помощь | C99: 724098 | D99: =C99-'ведом. 2019'!#REF! -> 
A100: 0906 | B100: Заготовка, переработка, хранение и обеспечение безопасности донорской крови и её компонентов | C100: 377981 | D100: =C100-'ведом. 2019'!#REF! -> 
A101: 0907 | B101: Санитарно-эпидемиологическое благополучие
A102: 0908 | B102: Физическая культура и спорт | C102: =7800+1408321+370000+6700 -> 1792821 | D102: =C102-'ведом. 2019'!#REF! -> 
A103: 0909 | B103: Прикладные научные исследования в области здравоохранения, физической культуры и спорта | C103: 269728 | D103: =C103-'ведом. 2019'!#REF! -> 
A104: 0910 | B104: Другие вопросы в области здравоохранения, физической культуры и спорта | C104: =700+77619-4704+1061358+45000+20330903+21267+285337+40000-2783923 -> 19073557 | D104: =C104-'ведом. 2019'!#REF! -> 
A106: 1000 | B106: СОЦИАЛЬНАЯ ПОЛИТИКА | C106: =SUM(C107:C112) -> 43410314 | D106: =C106-'ведом. 2019'!G608 -> 43410314 | E106: =C106-[1]свод!$E$212 -> 0
A107: 1001 | B107: Пенсионное обеспечение | C107: 142633 | D107: =C107-'ведом. 2019'!G609 -> 142633
A108: 1002 | B108: Социальное обслуживание населения | C108: =6842258-285000+384800 -> 6942058 | D108: =C108-'ведом. 2019'!#REF! -> 
A109: 1003 | B109: Социальное обеспечение населения | C109: =12882130+394827+10076960+5733862+51761+768117+120000-5045+375914+84409+52500+415975 -> 30951410 | D109: =C109-'ведом. 2019'!G615 -> 30951410
A110: 1004 | B110: Охрана семьи и детства | C110: =580+2000+2871367 -> 2873947 | D110: =C110-'ведом. 2019'!#REF! -> 
A111: 1005 | B111: Прикладные научные исследования в области социальной политики
A112: 1006 | B112: Другие вопросы в области социальной политики | C112: =78766+7647+85664+1988045+285000+55144 -> 2500266 | D112: =C112-'ведом. 2019'!#REF! -> 
A114: 1100 | B114: МЕЖБЮДЖЕТНЫЕ ТРАНСФЕРТЫ | C114: =SUM(C115:C119) -> 58232166 | D114: =C114-'ведом. 2019'!#REF! ->  | E114: =C114-[1]свод!$E$213 -> 0
A115: 1101 | B115: Дотации бюджетам субъектов Российской Федерации и муниципальных образований | C115: =5289811-576383 -> 4713428 | D115: =C115-'ведом. 2019'!#REF! ->  | E115: =C115-[1]свод!$E$215 -> 0
A116: 1102 | B116: Субсидии бюджетам субъектов Российской Федерации и муниципальных образований (межбюджетные субсидии) | C116: =45137+1422412-8000+3516363+1120817+115530+4450200+25040+1454659+1115615+610471+973579+151146+160000+297200+281+400000+1000000 -> 16850450 | D116: =C116-'ведом. 2019'!#REF! ->  | E116: =C116-[1]свод!$E$222 -> 0
A117: 1103 | B117: Субвенции бюджетам субъектов Российской Федерации и муниципальных образований | C117: =4668019+281+70477+805870+159381+90840+27834+1551298+281597+26495709+21661+8000+146682-281+175000+7400+37+2088 -> 34511893 | D117: =C117-'ведом. 2019'!#REF! ->  | E117: =C117-[1]свод!$E$261 -> 0
A118: 1104 | B118: Иные межбюджетные трансферты | C118: =200000+23893+6013666-141000-21267-7647-3911250 -> 2156395 | D118: =C118-'ведом. 2019'!#REF! ->  | E118: =C118-[1]свод!$E$292 -> 0
A119: 1105 | B119: Межбюджетные трансферты бюджетам государственных внебюджетных фондов
A120: ВСЕГО | C120: =C4+C20+C31+C47+C61+C68+C75+C86+C94+C106+C114 -> 250120048 | D120: =C120-'ведом. 2019'!#REF! ->  | E120: =C120-[1]свод!$E$300 -> 0
B122: ведомственная | C122: =C120-'Ведомственная 2008'!H2619 -> 0
B123: функцион | C123: =C120-'ведом. 2019'!#REF! -> 
B125: Резерв было всего | C125: 6013666 | D125: 3911250
C126: -141000
C127: -21267
C128: -7647
B129: Остаток в Думу | C129: =C125+C126+C127+C128 -> 5843752
B130: спец продукция, для допуска транспортных средст ГУВД МО | C130: -26106
B131: выплата надбавок к денежному довольствию личного состава Гл. упр. региональной безопасности МО | C131: -100000
B132: замены электропроводки и установки противопожарной сигнализации для Лобненского техникума строительной индустрии и предпринимательства предусмотреть Министерству строительного комплекса | C132: -9500
B133: проведение капитального ремонта комплекса зданий, в котором располагается министерство жилищно-коммунального хозяйства | C133: -22800
B134: открытие пяти отделений на базе государственного учреждения Московской области «Детская юношеская спортивная школа олимпийского резерва по футболу» (Комитет физ-ры) | C134: -15000
B135: открытие государственного учреждения дополнительного образования «Детско-юношеская спортивная школа по гандболу» на 500 человек (Комитет физ-ры) | C135: -2000
B136: проведение спортивных соревнований на призы Правительства Московской области в рамках международных соревнований мемориала братьев Знаменских (Комитет физ-ры) | C136: -6700
B137: Мин. Потребительского рынка | C137: -42500
B138: Премия Думы | C138: -8621
B139: АПК | C139: -17956
B142: Минус с остатка | C142: =SUM(C130:C141) -> -251183
B143: Остаток резерва | C143: =C129+C142 -> 5592569

Sheet Функц. 2019
D1: Приложение 4
D2: к изменениям и дополнениям
D3: к бюджету города Лыткарино на 2019 год
D4: и на плановый период 2020 и 2021 годов
D5: (Приложение 5
D6: к бюджету города Лыткарино на 2019 год
D7: и на плановый период 2020 и 2021 годов)
D13: и на плановый период 2020 и 2021 годов)
A14: Расходы бюджета города Лыткарино на 2019 год по разделам, подразделам, целевым статьям (муниципальным программам города Лыткарино и непрограммным направлениям деятельности), группам и подгруппам видов расходов классификации расходов бюджетов
G15: (тыс.руб.)
A16: Наименования | B16: Рз | C16: ПР | D16: ЦСР | E16: ВР | F16: Сумма на 2019 год | G16: В т.ч. Субвенции, субсидии, иные межбюджетные трансферты
A17: 1 | B17: 2 | C17: 3 | D17: 4 | E17: 5 | F17: 6 | G17: 7
A18: Общегосударственные вопросы | B18: 01 | F18: =F19+F24+F57+F105+F142+F162+F174 -> 243717.5 | G18: =G19+G24+G57+G105+G142+G162+G174 -> 4977
A19: Функционирование высшего должностного лица субъекта Российской Федерации и муниципального образования | B19: 01 | C19: 02 | F19: =F20 -> 2650
A20: Руководство и управление в сфере установленных функций органов местного самоуправления, избирательных комиссий муниципальных образований | B20: 01 | C20: 02 | D20: 95 0 00 00000 | F20: =F21 -> 2650
A21: Глава муниципального образования | B21: 01 | C21: 02 | D21: 95 0 00 01000 | F21: =F22 -> 2650
A22: Расходы на выплаты персоналу в целях обеспечения выполнения функций государственными (муниципальными) органами, казенными учреждениями, органами управления государственными внебюджетными фондами | B22: 01 | C22: 02 | D22: 95 0 00 01000 | E22: 100 | F22: =F23 -> 2650
A23: Расходы на выплаты персоналу государственных (муниципальных) органов | B23: 01 | C23: 02 | D23: 95 0 00 01000 | E23: 120 | F23: ='ведом. 2019'!AD21 -> 2650
A24: Функционирование законодательных (представительных) органов государственной власти и представительных органов муниципальных образований | B24: 01 | C24: 03 | F24: =F38+F25+F31 -> 11653
A25: Муниципальная программа «Муниципальное управление города Лыткарино на 2017-2021 годы» | B25: 01 | C25: 03 | D25: 01 0 00 00000 | F25: =F26 -> 10
A26: Подпрограмма «Развитие системы информирования населения о деятельности органов местного самоуправления города Лыткарино Московской области» | B26: 01 | C26: 03 | D26: 01 4 00 00000 | F26: =F27 -> 10
A27: Основное мероприятие "Информирование населения г.Лыткарино об основных событиях социально-экономического развития, общественно-политической жизни, о деятельности органов местного самоуправления города Лыткарино" | B27: 01 | C27: 03 | D27: 01 4 01 00000 | F27: =F28 -> 10
A28: Осуществление взаимодействия органов местного самоуправления с печатными средствами массовой информации в области подписки,доставки и распространения тиражей печатных изданий | B28: 01 | C28: 03 | D28: =D29 -> 01 4 01 00020 | F28: =F29 -> 10
A29: Закупка товаров, работ и услуг для обеспечения государственных (муниципальных) нужд | B29: 01 | C29: 03 | D29: =D30 -> 01 4 01 00020 | E29: 200 | F29: =F30 -> 10
A30: Иные закупки товаров, работ и услуг для обеспечения государственных (муниципальных) нужд | B30: 01 | C30: 03 | D30: 01 4 01 00020 | E30: 240 | F30: ='ведом. 2019'!AD710 -> 10
A31: Муниципальная программа "Развитие инженерной инфраструктуры и энергоэффективности на территории города Лыткарино"на 2018-2022 годы | B31: 01 | C31: 03 | D31: 06 0 00 00000 | F31: =F32 -> 20
A32: Подпрограмма "Энергосбережение и повышение энергетической эффективности на территории города Лыткарино" | B32: 01 | C32: 03 | D32: 06 2 00 00000 | F32: 20
A33: Основное мероприятие "Повышение энергетической эффективности в бюджетной сфере на территории города Лыткарино" | B33: 01 | C33: 03 | D33: 06 2 03 00000 | F33: 20
A34: Мероприятия по энергосбережению и повышению энергетической эффективности | B34: 01 | C34: 03 | D34: 06 2 03 18000 | F34: 20
A35: Замена прибора учета электроэнергии | B35: 01 | C35: 03 | D35: 06 2 03 18030 | F35: 20
A36: Закупка товаров, работ и услуг для обеспечения государственных (муниципальных) нужд | B36: 01 | C36: 03 | D36: 06 2 03 18030 | E36: 200 | F36: 20
A37: Иные закупки товаров, работ и услуг для обеспечения государственных (муниципальных) нужд | B37: 01 | C37: 03 | D37: 06 2 03 18030 | E37: 240 | F37: ='ведом. 2019'!AD718 -> 20
A38: Руководство и управление в сфере установленных функций органов местного самоуправления, избирательных комиссий муниципальных образований | B38: 01 | C38: 03 | D38: 95 0 00 00000 | F38: =F39+F43+F45 -> 11623
A39: Председатель представительного органа муниципального образования | B39: 01 | C39: 03 | D39: 95 0 00 02000 | F39: =F40 -> 2248.2
A40: Расходы на выплаты персоналу в целях обеспечения выполнения функций государственными (муниципальными) органами, казенными учреждениями, органами управления государственными внебюджетными фондами | B40: 01 | C40: 03 | D40: 95 0 00 02000 | E40: 100 | F40: =F41 -> 2248.2
A41: Расходы на выплаты персоналу государственных (муниципальных) органов | B41: 01 | C41: 03 | D41: 95 0 00 02000 | E41: 120 | F41: ='ведом. 2019'!AD722 -> 2248.2
A42: Депутаты представительного органа местного самоуправления | B42: 01 | C42: 03 | D42: 95 0 00 03000 | F42: =F44 -> 1798.6
A43: Расходы на выплаты персоналу в целях обеспечения выполнения функций государственными (муниципальными) органами, казенными учреждениями, органами управления государственными внебюджетными фондами | B43: 01 | C43: 03 | D43: 95 0 00 03000 | E43: 100 | F43: =F44 -> 1798.6
A44: Расходы на выплаты персоналу государственных (муниципальных) органов | B44: 01 | C44: 03 | D44: 95 0 00 03000 | E44: 120 | F44: ='ведом. 2019'!AD725 -> 1798.6
A45: Центральный аппарат | B45: 01 | C45: 03 | D45: 95 0 00 04000 | F45: =F46+F51+F54 -> 7576.2
A46: Расходы на обеспечение деятельности центрального аппарата | B46: 01 | C46: 03 | D46: 95 0 00 04010 | F46: =F47+F49 -> 2259.1
A47: Закупка товаров, работ и услуг для обеспечения государственных (муниципальных) нужд | B47: 01 | C47: 03 | D47: 95 0 00 04010 | E47: 200 | F47: =F48 -> 2170.3
A48: Иные закупки товаров, работ и услуг для обеспечения государственных (муниципальных) нужд | B48: 01 | C48: 03 | D48: 95 0 00 04010 | E48: 240 | F48: ='ведом. 2019'!AD729 -> 2170.3
A49: Иные бюджетные ассигнования | B49: 01 | C49: 03 | D49: 95 0 00 04010 | E49: 800 | F49: =F50 -> 88.8
A50: Уплата налогов, сборов и иных платежей | B50: 01 | C50: 03 | D50: 95 0 00 04010 | E50: 850 | F50: ='ведом. 2019'!AD731 -> 88.8
A51: Расходы на содержание лиц, замещающих должности, не являющиеся должностями муниципальной службы | B51: 01 | C51: 03 | D51: 95 0 00 04020 | F51: =F52 -> 3049.7
A52: Расходы на выплаты персоналу в целях обеспечения выполнения функций государственными (муниципальными) органами, казенными учреждениями, органами управления государственными внебюджетными фондами | B52: 01 | C52: 03 | D52: 95 0 00 04020 | E52: 100 | F52: =F53 -> 3049.7
A53: Расходы на выплаты персоналу государственных (муниципальных) органов | B53: 01 | C53: 03 | D53: 95 0 00 04020 | E53: 120 | F53: ='ведом. 2019'!AD734 -> 3049.7
A54: Расходы на содержание лиц, замещающих должности муниципальной службы | B54: 01 | C54: 03 | D54: 95 0 00 04030 | F54: =F55 -> 2267.4
A55: Расходы на выплаты персоналу в целях обеспечения выполнения функций государственными (муниципальными) органами, казенными учреждениями, органами управления государственными внебюджетными фондами | B55: 01 | C55: 03 | D55: 95 0 00 04030 | E55: 100 | F55: =F56 -> 2267.4
A56: Расходы на выплаты персоналу государственных (муниципальных) органов | B56: 01 | C56: 03 | D56: 95 0 00 04030 | E56: 120 | F56: ='ведом. 2019'!AD737 -> 2267.4
A57: Функционирование Правительства Российской Федерации, высших исполнительных органов государственной власти субъектов Российской Федерации, местных администраций | B57: 01 | C57: 04 | F57: =F58+F97 -> 64180.5 | G57: =G58+G97 -> 3687
A58: Муниципальная программа «Муниципальное управление города Лыткарино на 2017-2021 годы» | B58: 01 | C58: 04 | D58: 01 0 00 00000 | F58: =F59+F80+F88 -> 62105.5 | G58: =G59+G80+G88 -> 1612
A59: Обеспечивающая подпрограмма | B59: 01 | C59: 04 | D59: 01 1 00 00000 | F59: =F61+F75 -> 54018.8 | G59: =G61+G75 -> 1612
A60: Основное мероприятие " Обеспечение деятельности Администрации городcкого округа Лыткарино и ее функциональных органов" | B60: 01 | C60: 04 | D60: 01 1 01 00000 | F60: =F61+F75 -> 54018.8 | G60: =G61+G75 -> 1612
A61: Центральный аппарат | B61: 01 | C61: 04 | D61: 01 1 01 04000 | F61: =F62+F69+F72 -> 52406.8
A62: Расходы на обеспечение деятельности центрального аппарата | B62: 01 | C62: 04 | D62: =D65 -> 01 1 01 04010 | F62: =F65+F67+F63 -> 7467.5
A63: Расходы на выплаты персоналу в целях обеспечения выполнения функций государственными (муниципальными) органами, казенными учреждениями, органами управления государственными внебюджетными фондами | B63: 01 | C63: 04 | D63: =D64 -> 01 1 01 04010 | E63: 100 | F63: =F64 -> 13.5
A64: Расходы на выплаты персоналу государственных (муниципальных) органов | B64: 01 | C64: 04 | D64: =D65 -> 01 1 01 04010 | E64: 120 | F64: ='ведом. 2019'!AD29 -> 13.5
A65: Закупка товаров, работ и услуг для обеспечения государственных (муниципальных) нужд | B65: 01 | C65: 04 | D65: =D66 -> 01 1 01 04010 | E65: 200 | F65: =F66 -> 7278.8
A66: Иные закупки товаров, работ и услуг для обеспечения государственных (муниципальных) нужд | B66: 01 | C66: 04 | D66: =D67 -> 01 1 01 04010 | E66: 240 | F66: ='ведом. 2019'!AD31 -> 7278.8
A67: Иные бюджетные ассигнования | B67: 01 | C67: 04 | D67: =D68 -> 01 1 01 04010 | E67: 800 | F67: =F68 -> 175.2
A68: Уплата налогов, сборов и иных платежей | B68: 01 | C68: 04 | D68: 01 1 01 04010 | E68: 850 | F68: ='ведом. 2019'!AD33 -> 175.2
A69: Расходы на содержание лиц, замещающих должности, не являющиеся должностями муниципальной службы | B69: 01 | C69: 04 | D69: =D70 -> 01 1 01 04020 | F69: =F71 -> 13510.9
A70: Расходы на выплаты персоналу в целях обеспечения выполнения функций государственными (муниципальными) органами, казенными учреждениями, органами управления государственными внебюджетными фондами | B70: 01 | C70: 04 | D70: =D71 -> 01 1 01 04020 | E70: 100 | F70: =F71 -> 13510.9
A71: Расходы на выплаты персоналу государственных (муниципальных) органов | B71: 01 | C71: 04 | D71: 01 1 01 04020 | E71: 120 | F71: ='ведом. 2019'!AD36 -> 13510.9
A72: Расходы на содержание лиц, замещающих должности муниципальной службы | B72: 01 | C72: 04 | D72: =D73 -> 01 1 01 04030 | F72: =F73 -> 31428.4
A73: Расходы на выплаты персоналу в целях обеспечения выполнения функций государственными (муниципальными) органами, казенными учреждениями, органами управления государственными внебюджетными фондами | B73: 01 | C73: 04 | D73: =D74 -> 01 1 01 04030 | E73: 100 | F73: =F74 -> 31428.4
A74: Расходы на выплаты персоналу государственных (муниципальных) органов | B74: 01 | C74: 04 | D74: 01 1 01 04030 | E74: 120 | F74: ='ведом. 2019'!AD39 -> 31428.4
A75: Расходы за счет средств субвенции бюджетам муниципальных районов и городских округов Московской области на обеспечение переданных муниципальным районам и городским округам Московской области государственных полномочий по временному хранению, комплектованию, учету и использованию архивных документов, относящихся к собственности Московской области и временно хранящихся в муниципальных архивах | B75: 01 | C75: 04 | D75: 01 1 01 60690 | F75: =F76+F78 -> 1612 | G75: =G76+G78 -> 1612
A76: Расходы на выплаты персоналу в целях обеспечения выполнения функций государственными (муниципальными) органами, казенными учреждениями, органами управления государственными внебюджетными фондами | B76: 01 | C76: 04 | D76: 01 1 01 60690 | E76: 100 | F76: =F77 -> 1575.5 | G76: 1575.5
A77: Расходы на выплаты персоналу государственных (муниципальных) органов | B77: 01 | C77: 04 | D77: 01 1 01 60690 | E77: 120 | F77: ='ведом. 2019'!AD42 -> 1575.5 | G77: =F77 -> 1575.5
A78: Закупка товаров, работ и услуг для обеспечения государственных (муниципальных) нужд | B78: 01 | C78: 04 | D78: 01 1 01 60690 | E78: 200 | F78: =F79 -> 36.5 | G78: =G79 -> 36.5
A79: Иные закупки товаров, работ и услуг для обеспечения государственных (муниципальных) нужд | B79: 01 | C79: 04 | D79: 01 1 01 60690 | E79: 240 | F79: ='ведом. 2019'!AD44 -> 36.5 | G79: =F79 -> 36.5
A80: Подпрограмма «Развитие системы информирования населения о деятельности органов местного самоуправления города Лыткарино Московской области» | B80: 01 | C80: 04 | D80: 01 4 00 00000 | F80: =F81 -> 7531.6
A81: Основное мероприятие "Информирование населения г.Лыткарино об основных событиях социально-экономического развития, общественно-политической жизни, о деятельности органов местного самоуправления муниципального образования Московской области" | B81: 01 | C81: 04 | D81: 01 4 01 00000 | F81: =F82+F85 -> 7531.6
A82: Мероприятия в области развития системы информирования населения | B82: 01 | C82: 04 | D82: =D83 -> 01 4 01 00010 | F82: =F83 -> 7485
A83: Закупка товаров, работ и услуг для обеспечения государственных (муниципальных) нужд | B83: 01 | C83: 04 | D83: =D84 -> 01 4 01 00010 | E83: 200 | F83: =F84 -> 7485
A84: Иные закупки товаров, работ и услуг для обеспечения государственных (муниципальных) нужд | B84: 01 | C84: 04 | D84: 01 4 01 00010 | E84: 240 | F84: ='ведом. 2019'!AD49 -> 7485
A85: Осуществление взаимодействия органов местного самоуправления с печатными средствами массовой информации в области подписки,доставки и распространения тиражей печатных изданий | B85: 01 | C85: 04 | D85: =D86 -> 01 4 01 00020 | F85: =F86 -> 46.6
A86: Закупка товаров, работ и услуг для обеспечения государственных (муниципальных) нужд | B86: 01 | C86: 04 | D86: =D87 -> 01 4 01 00020 | E86: 200 | F86: =F87 -> 46.6
A87: Иные закупки товаров, работ и услуг для обеспечения государственных (муниципальных) нужд | B87: 01 | C87: 04 | D87: 01 4 01 00020 | E87: 240 | F87: ='ведом. 2019'!AD52 -> 46.6
A88: Подпрограмма "Развитие архивного дела в городе Лыткарино" | B88: 01 | C88: 04 | D88: 01 5 00 00000 | F88: =F89+F93 -> 555.1
A89: Основное мероприятие "Организация упорядочения документов постоянного хранения и по личному составу" | B89: 01 | C89: 04 | D89: 01 5 01 00000 | F89: =F90 -> 482.1
A90: Расходы для упорядочения документов постоянного хранения | B90: 01 | C90: 04 | D90: 01 5 01 00010 | F90: =F91 -> 482.1
A91: Закупка товаров, работ и услуг для обеспечения государственных (муниципальных) нужд | B91: 01 | C91: 04 | D91: =D92 -> 01 5 01 00010 | E91: 200 | F91: =F92 -> 482.1
A92: Иные закупки товаров, работ и услуг для обеспечения государственных (муниципальных) нужд | B92: 01 | C92: 04 | D92: 01 5 01 00010 | E92: 240 | F92: ='ведом. 2019'!AD57 -> 482.1 | H92: 9
A93: Основное мероприятие "Создание оптимальных условий для хранения архивных документов" | B93: 01 | C93: 04 | D93: 01 5 02 00000 | F93: =F94 -> 73
A94: Расходы на ремонт архивохранилища и приобретения материальных запасов | B94: 01 | C94: 04 | D94: =D95 -> 01 5 02 00020 | F94: =F95 -> 73
A95: Закупка товаров, работ и услуг для обеспечения государственных (муниципальных) нужд | B95: 01 | C95: 04 | D95: =D96 -> 01 5 02 00020 | E95: 200 | F95: =F96 -> 73
A96: Иные закупки товаров, работ и услуг для обеспечения государственных (муниципальных) нужд | B96: 01 | C96: 04 | D96: 01 5 02 00020 | E96: 240 | F96: ='ведом. 2019'!AD61 -> 73 | H96: -9
A97: Муниципальная программа "Образование города Лыткарино" на 2017-2021 годы | B97: 01 | C97: 04 | D97: 03 0 00 00000 | F97: =F98 -> 2075 | G97: 2075
A98: Подпрограмма "Общее образование" | B98: 01 | C98: 04 | D98: 03 2 00 00000 | F98: =F99 -> 2075 | G98: 2075
A99: Основное мероприятие "Обеспечение мер социальной поддержки обучающихся в образовательных организациях" | B99: 01 | C99: 04 | D99: 03 2 03 00000 | F99: 2075 | G99: 2075
A100: Обеспечение переданного государственного полномочия по созданию комиссий по делам несовершеннолетних и защите их прав городов и районов | B100: 01 | C100: 04 | D100: =D101 -> 03 2 03 60680 | F100: =F101+F103 -> 2075 | G100: 2075
A101: Расходы на выплаты персоналу в целях обеспечения выполнения функций государственными (муниципальными) органами, казенными учреждениями, органами управления государственными внебюджетными фондами | B101: 01 | C101: 04 | D101: =D102 -> 03 2 03 60680 | E101: 100 | F101: =F102 -> 1901.9 | G101: 1901.9
A102: Расходы на выплаты персоналу государственных (муниципальных) органов | B102: 01 | C102: 04 | D102: =D103 -> 03 2 03 60680 | E102: 120 | F102: ='ведом. 2019'!AD67 -> 1901.9 | G102: =F102 -> 1901.9
A103: Закупка товаров, работ и услуг для обеспечения государственных (муниципальных) нужд | B103: 01 | C103: 04 | D103: =D104 -> 03 2 03 60680 | E103: 200 | F103: =F104 -> 173.1 | G103: 173.1
A104: Иные закупки товаров, работ и услуг для обеспечения государственных (муниципальных) нужд | B104: 01 | C104: 04 | D104: 03 2 03 60680 | E104: 240 | F104: ='ведом. 2019'!AD69 -> 173.1 | G104: =F104 -> 173.1
A105: Обеспечение деятельности финансовых, налоговых и таможенных органов и органов финансового (финансово-бюджетного) надзора | B105: 01 | C105: 06 | F105: =F106+F126 -> 23726
A106: Муниципальная программа «Муниципальное управление города Лыткарино на 2017-2021 годы» | B106: 01 | C106: 06 | D106: 01 0 00 00000 | F106: =F107+F121 -> 16359.9
A107: Обеспечивающая подпрограмма | B107: 01 | C107: 06 | D107: 01 1 00 00000 | F107: =F108 -> 16344.4
A108: Основное мероприятие " Обеспечение деятельности Администрации городcкого округа Лыткарино и ее функциональных органов" | B108: 01 | C108: 06 | D108: 01 1 01 00000 | F108: =F109 -> 16344.4
A109: Центральный аппарат | B109: 01 | C109: 06 | D109: 01 1 01 04000 | F109: =F110+F115+F118 -> 16344.4
A110: Расходы на обеспечение деятельности центрального аппарата | B110: 01 | C110: 06 | D110: =D111 -> 01 1 01 04010 | F110: =F111+F113 -> 1540
A111: Закупка товаров, работ и услуг для обеспечения государственных (муниципальных) нужд | B111: 01 | C111: 06 | D111: =D112 -> 01 1 01 04010 | E111: 200 | F111: =F112 -> 1518.5
A112: Иные закупки товаров, работ и услуг для обеспечения государственных (муниципальных) нужд | B112: 01 | C112: 06 | D112: =D113 -> 01 1 01 04010 | E112: 240 | F112: ='ведом. 2019'!AD762 -> 1518.5
A113: Иные бюджетные ассигнования | B113: 01 | C113: 06 | D113: 01 1 01 04010 | E113: 800 | F113: =F114 -> 21.5
A114: Уплата налогов, сборов и иных платежей | B114: 01 | C114: 06 | D114: 01 1 01 04010 | E114: 850 | F114: ='ведом. 2019'!AD764 -> 21.5
A115: Расходы на содержание лиц, замещающих должности, не являющиеся должностями муниципальной службы | B115: 01 | C115: 06 | D115: =D116 -> 01 1 01 04020 | F115: =F117 -> 8498.9
A116: Расходы на выплаты персоналу в целях обеспечения выполнения функций государственными (муниципальными) органами, казенными учреждениями, органами управления государственными внебюджетными фондами | B116: 01 | C116: 06 | D116: =D117 -> 01 1 01 04020 | E116: 100 | F116: =F117 -> 8498.9
A117: Расходы на выплаты персоналу государственных (муниципальных) органов | B117: 01 | C117: 06 | D117: 01 1 01 04020 | E117: 120 | F117: ='ведом. 2019'!AD767 -> 8498.9
A118: Расходы на содержание лиц, замещающих должности муниципальной службы | B118: 01 | C118: 06 | D118: =D119 -> 01 1 01 04030 | F118: =F119 -> 6305.5
A119: Расходы на выплаты персоналу в целях обеспечения выполнения функций государственными (муниципальными) органами, казенными учреждениями, органами управления государственными внебюджетными фондами | B119: 01 | C119: 06 | D119: =D120 -> 01 1 01 04030 | E119: 100 | F119: =F120 -> 6305.5
A120: Расходы на выплаты персоналу государственных (муниципальных) органов | B120: 01 | C120: 06 | D120: 01 1 01 04030 | E120: 120 | F120: ='ведом. 2019'!AD770 -> 6305.5
A121: Подпрограмма «Развитие системы информирования населения о деятельности органов местного самоуправления города Лыткарино Московской области» | B121: 01 | C121: 06 | D121: 01 4 00 00000 | F121: =F122 -> 15.5
A122: Основное мероприятие "Информирование населения г.Лыткарино об основных событиях социально-экономического развития, общественно-политической жизни, о деятельности органов местного самоуправления города Лыткарино" | B122: 01 | C122: 06 | D122: 01 4 01 00000 | F122: =F123 -> 15.5
A123: Осуществление взаимодействия органов местного самоуправления с печатными средствами массовой информации в области подписки,доставки и распространения тиражей печатных изданий | B123: 01 | C123: 06 | D123: =D124 -> 01 4 01 00020 | F123: =F124 -> 15.5
A124: Закупка товаров, работ и услуг для обеспечения государственных (муниципальных) нужд | B124: 01 | C124: 06 | D124: =D125 -> 01 4 01 00020 | E124: 200 | F124: =F125 -> 15.5
A125: Иные закупки товаров, работ и услуг для обеспечения государственных (муниципальных) нужд | B125: 01 | C125: 06 | D125: 01 4 01 00020 | E125: 240 | F125: ='ведом. 2019'!AD775+'ведом. 2019'!AD1371 -> 15.5
A126: Руководство и управление в сфере установленных функций органов местного самоуправления, избирательных комиссий муниципальных образований | B126: 01 | C126: 06 | D126: 95 0 00 00000 | F126: =F127+F139 -> 7366.1
A127: Центральный аппарат | B127: 01 | C127: 06 | D127: 95 0 00 04000 | F127: =F128+F136+F133 -> 5427.2
A128: Расходы за счет средств местного бюджета на обеспечение деятельности центрального аппарата | B128: 01 | C128: 06 | D128: 95 0 00 04010 | F128: =F129+F131 -> 1248.5
A129: Закупка товаров, работ и услуг для обеспечения государственных (муниципальных) нужд | B129: 01 | C129: 06 | D129: 95 0 00 04010 | E129: 200 | F129: =F130 -> 1211
A130: Иные закупки товаров, работ и услуг для обеспечения государственных (муниципальных) нужд | B130: 01 | C130: 06 | D130: 95 0 00 04010 | E130: 240 | F130: ='ведом. 2019'!AD1376 -> 1211 | H130: 9
A131: Иные бюджетные ассигнования | B131: 01 | C131: 06 | D131: 95 0 00 04010 | E131: 800 | F131: =F132 -> 37.5
A132: Уплата налогов, сборов и иных платежей | B132: 01 | C132: 06 | D132: 95 0 00 04010 | E132: 850 | F132: ='ведом. 2019'!AD1378 -> 37.5 | H132: 5
A133: Расходы на содержание лиц, замещающих должности, не являющиеся должностями муниципальной службы | B133: 01 | C133: 06 | D133: 95 0 00 04020 | F133: =F134 -> 1039
A134: Расходы на выплаты персоналу в целях обеспечения выполнения функций государственными (муниципальными) органами, казенными учреждениями, органами управления государственными внебюджетными фондами | B134: 01 | C134: 06 | D134: 95 0 00 04020 | E134: 100 | F134: =F135 -> 1039
A135: Расходы на выплаты персоналу государственных (муниципальных) органов | B135: 01 | C135: 06 | D135: 95 0 00 04020 | E135: 120 | F135: ='ведом. 2019'!AD1381 -> 1039 | H135: -14
A136: Расходы за счет средств местного бюджета на содержание лиц, замещающих должности муниципальной службы | B136: 01 | C136: 06 | D136: 95 0 00 04030 | F136: =F137 -> 3139.7
A137: Расходы на выплаты персоналу в целях обеспечения выполнения функций государственными (муниципальными) органами, казенными учреждениями, органами управления государственными внебюджетными фондами | B137: 01 | C137: 06 | D137: 95 0 00 04030 | E137: 100 | F137: =F138 -> 3139.7
A138: Расходы на выплаты персоналу государственных (муниципальных) органов | B138: 01 | C138: 06 | D138: 95 0 00 04030 | E138: 120 | F138: ='ведом. 2019'!AD1384 -> 3139.7
A139: Председатель контрольно-счетной палаты муниципального образования и его заместитель | B139: 01 | C139: 06 | D139: 95 0 00 05000 | F139: =F140 -> 1938.9
A140: Расходы на выплаты персоналу в целях обеспечения выполнения функций государственными (муниципальными) органами, казенными учреждениями, органами управления государственными внебюджетными фондами | B140: 01 | C140: 06 | D140: 95 0 00 05000 | E140: 100 | F140: =F141 -> 1938.9
A141: Расходы на выплаты персоналу государственных (муниципальных) органов | B141: 01 | C141: 06 | D141: 95 0 00 05000 | E141: 120 | F141: ='ведом. 2019'!AD1387 -> 1938.9
A142: Обеспечение проведения выборов и референдумов | B142: 01 | C142: 07 | F142: =F149+F143 -> 4352.5
A143: Муниципальная программа «Муниципальное управление города Лыткарино на 2017-2021 годы» | B143: 01 | C143: 07 | D143: 01 0 00 00000 | F143: =F144 -> 1.1
A144: Подпрограмма «Развитие системы информирования населения о деятельности органов местного самоуправления города Лыткарино Московской области» | B144: 01 | C144: 07 | D144: 01 4 00 00000 | F144: =F145 -> 1.1
A145: Основное мероприятие "Информирование населения г.Лыткарино об основных событиях социально-экономического развития, общественно-политической жизни, о деятельности органов местного самоуправления города Лыткарино" | B145: 01 | C145: 07 | D145: 01 4 01 00000 | F145: =F146 -> 1.1
A146: Осуществление взаимодействия органов местного самоуправления с печатными средствами массовой информации в области подписки,доставки и распространения тиражей печатных изданий | B146: 01 | C146: 07 | D146: =D147 -> 01 4 01 00020 | F146: =F147 -> 1.1
A147: Закупка товаров, работ и услуг для обеспечения государственных (муниципальных) нужд | B147: 01 | C147: 07 | D147: =D148 -> 01 4 01 00020 | E147: 200 | F147: =F148 -> 1.1
A148: Иные закупки товаров, работ и услуг для обеспечения государственных (муниципальных) нужд | B148: 01 | C148: 07 | D148: 01 4 01 00020 | E148: 240 | F148: ='ведом. 2019'!AD1404 -> 1.1
A149: Руководство и управление в сфере установленных функций органов местного самоуправления, избирательных комиссий муниципальных образований | B149: 01 | C149: 07 | D149: 95 0 00 00000 | F149: =F150+F159 -> 4351.4
A150: Центральный аппарат | B150: 01 | C150: 07 | D150: 95 0 00 04000 | F150: =F151+F156 -> 2296.1
A151: Расходы на обеспечение деятельности центрального аппарата | B151: 01 | C151: 07 | D151: 95 0 00 04010 | F151: =F152+F154 -> 495.8
A152: Закупка товаров, работ и услуг для обеспечения государственных (муниципальных) нужд | B152: 01 | C152: 07 | D152: 95 0 00 04010 | E152: 200 | F152: =F153 -> 458.3
A153: Иные закупки товаров, работ и услуг для обеспечения государственных (муниципальных) нужд | B153: 01 | C153: 07 | D153: 95 0 00 04010 | E153: 240 | F153: ='ведом. 2019'!AD1408 -> 458.3
A154: Иные бюджетные ассигнования | B154: 01 | C154: 07 | D154: 95 0 00 04010 | E154: 800 | F154: =F155 -> 37.5
A155: Уплата налогов, сборов и иных платежей | B155: 01 | C155: 07 | D155: 95 0 00 04010 | E155: 850 | F155: ='ведом. 2019'!AD1411 -> 37.5
A156: Расходы на содержание лиц, замещающих должности, не являющиеся должностями муниципальной службы | B156: 01 | C156: 07 | D156: 95 0 00 04020 | F156: =F157 -> 1800.3
A157: Расходы на выплаты персоналу в целях обеспечения выполнения функций государственными (муниципальными) органами, казенными учреждениями, органами управления государственными внебюджетными фондами | B157: 01 | C157: 07 | D157: 95 0 00 04020 | E157: 100 | F157: =F158 -> 1800.3
A158: Расходы на выплаты персоналу государственных (муниципальных) органов | B158: 01 | C158: 07 | D158: 95 0 00 04020 | E158: 120 | F158: ='ведом. 2019'!AD1413 -> 1800.3
A159: Члены избирательной комиссии муниципального образования | B159: 01 | C159: 07 | D159: 95 0 00 06000 | F159: =F160 -> 2055.3
A160: Расходы на выплаты персоналу в целях обеспечения выполнения функций государственными (муниципальными) органами, казенными учреждениями, органами управления государственными внебюджетными фондами | B160: 01 | C160: 07 | D160: 95 0 00 06000 | E160: 100 | F160: =F161 -> 2055.3
A161: Расходы на выплаты персоналу государственных (муниципальных) органов | B161: 01 | C161: 07 | D161: 95 0 00 06000 | E161: 120 | F161: ='ведом. 2019'!AD1416 -> 2055.3
A162: Резервные фонды | B162: 01 | C162: 11 | F162: =F163+F173 -> 3251.4
A163: Муниципальная программа "Безопасность города Лыткарино" на 2017-2021 годы | B163: 01 | C163: 11 | D163: 08 0 00 00000 | F163: =F164 -> 2100
A164: Подпрограмма "Снижение рисков и смягчение последствий чрезвычайных ситуаций природного и техногенного характера" | B164: 01 | C164: 11 | D164: 08 3 00 00000 | F164: 2100
A165: Основное мероприятие "Создание резервного фонда Администрации городского округа Лыткарино для ликвидации чрезвычайных ситуаций, в том числе террористических актов" | B165: 01 | C165: 11 | D165: 08 3 07 00000 | F165: =F167 -> 2100
A166: Мероприятия в области национальной безопасности и правоохранительной деятельности | B166: 01 | C166: 11 | D166: 08 3 07 12000 | F166: =F167 -> 2100
A167: Создание резервного фонда Администрации городского округа Лыткарино для ликвидации чрезвычайных ситуаций, в том числе террористических актов | B167: 01 | C167: 11 | D167: =D168 -> 08 3 07 12060 | F167: 2100
A168: Иные бюджетные ассигнования | B168: 01 | C168: 11 | D168: =D169 -> 08 3 07 12060 | E168: 800 | F168: 2100
A169: Резервные средства | B169: 01 | C169: 11 | D169: 08 3 07 12060 | E169: 870 | F169: ='ведом. 2019'!AD77 -> 2100
A170: Непрограммные расходы бюджета города Лыткарино | B170: 01 | C170: 11 | D170: 99 0 00 00000 | F170: =F171 -> 1151.4
A171: Резервные фонды местных администраций на непредвиденные расходы | B171: 01 | C171: 11 | D171: 99 0 00 00010 | F171: =F172 -> 1151.4
A172: Иные бюджетные ассигнования | B172: 01 | C172: 11 | D172: 99 0 00 00010 | E172: 800 | F172: =F173 -> 1151.4
A173: Резервные средства | B173: 01 | C173: 11 | D173: 99 0 00 00010 | E173: 870 | F173: ='ведом. 2019'!AD81 -> 1151.4
A174: Другие общегосударственные вопросы | B174: 01 | C174: 13 | F174: =F175+F271+F261 -> 133904.1 | G174: =G175+G271 -> 1290
A175: Муниципальная программа «Муниципальное управление города Лыткарино на 2017-2021 годы» | B175: 01 | C175: 13 | D175: 01 0 00 00000 | F175: =F176+F231+F248+F243 -> 121124.7 | G175: =G176+G231+G248+G243 -> 1290
A176: Обеспечивающая подпрограмма | B176: 01 | C176: 13 | D176: 01 1 00 00000 | F176: =F177+F203+F212+F227 -> 84634.8 | G176: =G177+G203+G212+G227 -> 1290
A177: Основное мероприятие " Обеспечение деятельности Администрации городcкого округа Лыткарино и ее функциональных органов" | B177: 01 | C177: 13 | D177: 01 1 01 00000 | F177: =F178+F195+F198 -> 18761.1 | G177: =G178+G195+G198 -> 1246
A178: Центральный аппарат | B178: 01 | C178: 13 | D178: 01 1 01 04000 | F178: =F179+F184+F187 -> 17515.1
A179: Расходы на обеспечение деятельности центрального аппарата | B179: 01 | C179: 13 | D179: =D180 -> 01 1 01 04010 | F179: =F180+F182 -> 1413
A180: Закупка товаров, работ и услуг для обеспечения государственных (муниципальных) нужд | B180: 01 | C180: 13 | D180: =D181 -> 01 1 01 04010 | E180: 200 | F180: =F181 -> 1315.5
A181: Иные закупки товаров, работ и услуг для обеспечения государственных (муниципальных) нужд | B181: 01 | C181: 13 | D181: =D182 -> 01 1 01 04010 | E181: 240 | F181: ='ведом. 2019'!AD800 -> 1315.5
A182: Иные бюджетные ассигнования | B182: 01 | C182: 13 | D182: =D183 -> 01 1 01 04010 | E182: 800 | F182: =F183 -> 97.5
A183: Уплата налогов, сборов и иных платежей | B183: 01 | C183: 13 | D183: 01 1 01 04010 | E183: 850 | F183: ='ведом. 2019'!AD802 -> 97.5
A184: Расходы на содержание лиц, замещающих должности, не являющиеся должностями муниципальной службы | B184: 01 | C184: 13 | D184: =D185 -> 01 1 01 04020 | F184: =F186 -> 5749.6
A185: Расходы на выплаты персоналу в целях обеспечения выполнения функций государственными (муниципальными) органами, казенными учреждениями, органами управления государственными внебюджетными фондами | B185: 01 | C185: 13 | D185: =D186 -> 01 1 01 04020 | E185: 100 | F185: =F186 -> 5749.6
A186: Расходы на выплаты персоналу государственных (муниципальных) органов | B186: 01 | C186: 13 | D186: 01 1 01 04020 | E186: 120 | F186: ='ведом. 2019'!AD805 -> 5749.6
A187: Расходы на содержание лиц, замещающих должности муниципальной службы | B187: 01 | C187: 13 | D187: =D188 -> 01 1 01 04030 | F187: =F189 -> 10352.5
A188: Расходы на выплаты персоналу в целях обеспечения выполнения функций государственными (муниципальными) органами, казенными учреждениями, органами управления государственными внебюджетными фондами | B188: 01 | C188: 13 | D188: =D189 -> 01 1 01 04030 | E188: 100 | F188: =F189 -> 10352.5
A189: Расходы на выплаты персоналу государственных (муниципальных) органов | B189: 01 | C189: 13 | D189: 01 1 01 04030 | E189: 120 | F189: ='ведом. 2019'!AD808 -> 10352.5 | H189: 83
A190: Расходы для осуществления государственных полномочий в соответствии с Законом Московской области №107/2014-ОЗ "О наделении органов местного самоуправления муниципальных образований Московской области отдельными государственными полномочиями Московской области" | B190: 01 | C190: 13 | D190: =D191 -> 01 1 01 60700 | F190: =F191+F193 -> 
A191: Расходы на выплаты персоналу в целях обеспечения выполнения функций государственными (муниципальными) органами, казенными учреждениями, органами управления государственными внебюджетными фондами | B191: 01 | C191: 13 | D191: =D192 -> 01 1 01 60700 | E191: 100 | F191: =F192 -> 
A192: Расходы на выплаты персоналу государственных (муниципальных) органов | B192: 01 | C192: 13 | D192: =D193 -> 01 1 01 60700 | E192: 120 | F192: ='ведом. 2019'!#REF! ->  | G192: =F192 -> 
A193: Закупка товаров, работ и услуг для обеспечения государственных (муниципальных) нужд | B193: 01 | C193: 13 | D193: =D194 -> 01 1 01 60700 | E193: 200 | F193: =F194 -> 
A194: Иные закупки товаров, работ и услуг для обеспечения государственных (муниципальных) нужд | B194: 01 | C194: 13 | D194: 01 1 01 60700 | E194: 240 | F194: ='ведом. 2019'!#REF! ->  | G194: =F194 -> 
A195: Расходы для осуществления государственных полномочий в соответствии с Законом Московской области №107/2014-ОЗ «О наделении органов местного самоуправления муниципальных образований Московской области отдельными государственными полномочиями Московской области» | B195: 01 | C195: 13 | D195: 01 1 01 60700 | F195: =F196 -> 235 | G195: 235
A196: Закупка товаров, работ и услуг для обеспечения государственных (муниципальных) нужд | B196: 01 | C196: 13 | D196: 01 1 01 60700 | E196: 200 | F196: 235 | G196: 235
A197: Иные закупки товаров, работ и услуг для обеспечения государственных (муниципальных) нужд | B197: 01 | C197: 13 | D197: 01 1 01 60700 | E197: 240 | F197: ='ведом. 2019'!AD88 -> 235 | G197: =F197 -> 235
A198: Осуществление государственных полномочий Московской области в области земельных отношений | B198: 01 | C198: 13 | D198: =D199 -> 01 1 01 60830 | F198: =F199+F201 -> 1011 | G198: =G199+G201 -> 1011
A199: Расходы на выплаты персоналу в целях обеспечения выполнения функций государственными (муниципальными) органами, казенными учреждениями, органами управления государственными внебюджетными фондами | B199: 01 | C199: 13 | D199: =D200 -> 01 1 01 60830 | E199: 100 | F199: =F200 -> 905.4 | G199: =G200 -> 905.4
A200: Расходы на выплаты персоналу государственных (муниципальных) органов | B200: 01 | C200: 13 | D200: =D201 -> 01 1 01 60830 | E200: 120 | F200: ='ведом. 2019'!AD816 -> 905.4 | G200: =F200 -> 905.4
A201: Закупка товаров, работ и услуг для обеспечения государственных (муниципальных) нужд | B201: 01 | C201: 13 | D201: =D202 -> 01 1 01 60830 | E201: 200 | F201: =F202 -> 105.6 | G201: =G202 -> 105.6
A202: Иные закупки товаров, работ и услуг для обеспечения государственных (муниципальных) нужд | B202: 01 | C202: 13 | D202: 01 1 01 60830 | E202: 240 | F202: ='ведом. 2019'!AD818 -> 105.6 | G202: =F202 -> 105.6
A203: Основное мероприятие " Прочие общегосударственные мероприятия" | B203: 01 | C203: 13 | D203: 01 1 02 00000 | F203: =F204 -> 11113.4
A204: Прочие общегосударственные мероприятия | B204: 01 | C204: 13 | D204: 01 1 02 27000 | F204: =F209+F205 -> 11113.4
A205: Исполнение судебных актов по обращениям и взыскания на средства бюджета | B205: 01 | C205: 13 | D205: =D206 -> 01 1 02 27010 | F205: =F206 -> 10980.4
... 984 more rows

Sheet Целевые 2019
B1: Приложение 8
B2: к изменениям и дополнениям
B3: к бюджету города Лыткарино на 2019 год
B4: и на плановый период 2020 и 2021 годов
B6: (Приложение 9
B7: к бюджету города Лыткарино на 2019 год
B8: и на плановый период 2020 и 2021 годов)
A10: Расходы бюджета города Лыткарино по целевым статьям (муниципальным программам города Лыткарино и непрограммным направлениям деятельности), группам и подгруппам видов расходов классификации расходов бюджетов на 2019 год
D11: (тыс.руб.)
A13: Наименования | B13: ЦСР | C13: ВР | D13: Сумма на 2019 год
A14: 1 | B14: 2 | C14: 3 | D14: 4
A15: Муниципальная программа «Муниципальное управление города Лыткарино на 2017-2021 годы» | B15: 01 0 00 00000 | D15: =D16+D85+D98+D110+D124+D133+D138+D168+D151 -> 281629.6
A16: Обеспечивающая подпрограмма | B16: 01 1 00 00000 | D16: =D17+D53+D62+D66+D81 -> 167863.1
A17: Основное мероприятие " Обеспечение деятельности Администрации городcкого округа Лыткарино и ее функциональных органов" | B17: 01 1 01 00000 | D17: =D18+D32+D43+D40+D35+D48 -> 101691.4
A18: Центральный аппарат | B18: 01 1 01 04000 | D18: =D19+D26+D29 -> 95357.4
A19: Расходы на обеспечение деятельности центрального аппарата | B19: 01 1 01 04010 | D19: =D22+D24+D20 -> 11390.4
A20: Расходы на выплаты персоналу в целях обеспечения выполнения функций государственными (муниципальными) органами, казенными учреждениями, органами управления государственными внебюджетными фондами | B20: 01 1 01 04010 | C20: 100 | D20: =D21 -> 13.5
A21: Расходы на выплаты персоналу государственных (муниципальных) органов | B21: 01 1 01 04010 | C21: 120 | D21: ='Функц. 2019'!F64 -> 13.5
A22: Закупка товаров, работ и услуг для обеспечения государственных (муниципальных) нужд | B22: 01 1 01 04010 | C22: 200 | D22: =D23 -> 11044.9
A23: Иные закупки товаров, работ и услуг для обеспечения государственных (муниципальных) нужд | B23: 01 1 01 04010 | C23: 240 | D23: ='Функц. 2019'!F66+'Функц. 2019'!F112+'Функц. 2019'!F181+'Функц. 2019'!F647 -> 11044.9 | E23: 9.5
A24: Иные бюджетные ассигнования | B24: =B25 -> 01 1 01 04010 | C24: 800 | D24: =D25 -> 332
A25: Уплата налогов, сборов и иных платежей | B25: 01 1 01 04010 | C25: 850 | D25: ='Функц. 2019'!F68+'Функц. 2019'!F114+'Функц. 2019'!F183+'Функц. 2019'!F649 -> 332
A26: Расходы на содержание лиц, замещающих должности, не являющиеся должностями муниципальной службы | B26: 01 1 01 04020 | D26: =D28 -> 32066.1
A27: Расходы на выплаты персоналу в целях обеспечения выполнения функций государственными (муниципальными) органами, казенными учреждениями, органами управления государственными внебюджетными фондами | B27: =B28 -> 01 1 01 04020 | C27: 100 | D27: =D28 -> 32066.1
A28: Расходы на выплаты персоналу государственных (муниципальных) органов | B28: 01 1 01 04020 | C28: 120 | D28: ='Функц. 2019'!F652+'Функц. 2019'!F186+'Функц. 2019'!F117+'Функц. 2019'!F71 -> 32066.1
A29: Расходы на содержание лиц, замещающих должности муниципальной службы | B29: =B30 -> 01 1 01 04030 | D29: =D30 -> 51900.9
A30: Расходы на выплаты персоналу в целях обеспечения выполнения функций государственными (муниципальными) органами, казенными учреждениями, органами управления государственными внебюджетными фондами | B30: =B31 -> 01 1 01 04030 | C30: 100 | D30: 51900.9
A31: Расходы на выплаты персоналу государственных (муниципальных) органов | B31: 01 1 01 04030 | C31: 120 | D31: ='Функц. 2019'!F655+'Функц. 2019'!F189+'Функц. 2019'!F120+'Функц. 2019'!F74 -> 51900.9
A32: Расходы на осуществление полномочий по первичному воинскому учету на территориях, где отсутствуют военные комиссариаты | B32: =B33 -> 01 1 01 51180 | D32: =D33 -> 3476
A33: Расходы на выплаты персоналу в целях обеспечения выполнения функций государственными (муниципальными) органами, казенными учреждениями, органами управления государственными внебюджетными фондами | B33: =B34 -> 01 1 01 51180 | C33: 100 | D33: 3476
A34: Расходы на выплаты персоналу государственных (муниципальных) органов | B34: 01 1 01 51180 | C34: 120 | D34: ='Функц. 2019'!F285 -> 3476
A35: Обеспечение переданных муниципальным районам и городским округам Московской области государственных полномочий по временному хранению, комплектованию, учету и использованию архивных документов, относящихся к собственности Московской области и временно хранящихся в муниципальных архивах | B35: 01 1 01 60690 | D35: =D36+D38 -> 1612
A36: Расходы на выплаты персоналу в целях обеспечения выполнения функций государственными (муниципальными) органами, казенными учреждениями, органами управления государственными внебюджетными фондами | B36: 01 1 01 60690 | C36: 100 | D36: =D37 -> 1575.5
A37: Расходы на выплаты персоналу государственных (муниципальных) органов | B37: 01 1 01 60690 | C37: 120 | D37: ='Функц. 2019'!F77 -> 1575.5
A38: Закупка товаров, работ и услуг для обеспечения государственных (муниципальных) нужд | B38: 01 1 01 60690 | C38: 200 | D38: =D39 -> 36.5
A39: Иные закупки товаров, работ и услуг для обеспечения государственных (муниципальных) нужд | B39: 01 1 01 60690 | C39: 240 | D39: ='Функц. 2019'!F79 -> 36.5
A40: Расходы для осуществления государственных полномочий в соответствии с Законом Московской области №107/2014-ОЗ «О наделении органов местного самоуправления муниципальных образований Московской области отдельными государственными полномочиями Московской области» | B40: 01 1 01 60700 | D40: =D41 -> 235
A41: Закупка товаров, работ и услуг для обеспечения государственных (муниципальных) нужд | B41: 01 1 01 60700 | C41: 200 | D41: 235
A42: Иные закупки товаров, работ и услуг для обеспечения государственных (муниципальных) нужд | B42: 01 1 01 60700 | C42: 240 | D42: ='Функц. 2019'!F197 -> 235
A43: Расходы для осуществления государственных полномочий в соответствии с Законом Московской области №107/2014-ОЗ "О наделении органов местного самоуправления муниципальных образований Московской области отдельными государственными полномочиями Московской области" | B43: =B44 -> 01 1 01 60700 | D43: =D44+D46 -> 0
A44: Расходы на выплаты персоналу в целях обеспечения выполнения функций государственными (муниципальными) органами, казенными учреждениями, органами управления государственными внебюджетными фондами | B44: =B45 -> 01 1 01 60700 | C44: 100 | D44: =D45 -> 0
A45: Расходы на выплаты персоналу государственных (муниципальных) органов | B45: =B46 -> 01 1 01 60700 | C45: 120
A46: Закупка товаров, работ и услуг для обеспечения государственных (муниципальных) нужд | B46: =B47 -> 01 1 01 60700 | C46: 200 | D46: =D47 -> 0
A47: Иные закупки товаров, работ и услуг для обеспечения государственных (муниципальных) нужд | B47: 01 1 01 60700 | C47: 240
A48: Осуществление государственных полномочий Московской области в области земельных отношений | B48: =B49 -> 01 1 01 60830 | D48: =D49+D51 -> 1011
A49: Расходы на выплаты персоналу в целях обеспечения выполнения функций государственными (муниципальными) органами, казенными учреждениями, органами управления государственными внебюджетными фондами | B49: =B50 -> 01 1 01 60830 | C49: 100 | D49: =D50 -> 905.4
A50: Расходы на выплаты персоналу государственных (муниципальных) органов | B50: =B51 -> 01 1 01 60830 | C50: 120 | D50: ='Функц. 2019'!F200 -> 905.4
A51: Закупка товаров, работ и услуг для обеспечения государственных (муниципальных) нужд | B51: =B52 -> 01 1 01 60830 | C51: 200 | D51: =D52 -> 105.6
A52: Иные закупки товаров, работ и услуг для обеспечения государственных (муниципальных) нужд | B52: 01 1 01 60830 | C52: 240 | D52: ='Функц. 2019'!F202 -> 105.6
A53: Основное мероприятие " Прочие общегосударственные мероприятия" | B53: 01 1 02 00000 | D53: =D54 -> 11113.4
A54: Прочие общегосударственные мероприятия | B54: 01 1 02 27000 | D54: =D55+D59 -> 11113.4
A55: Исполнение судебных актов по обращениям и взыскания на средства бюджета | B55: =B56 -> 01 1 02 27010 | D55: =D56 -> 10980.4
A56: Иные бюджетные ассигнования | B56: =B57 -> 01 1 02 27010 | C56: 800 | D56: =D57+D58 -> 10980.4
A57: Исполнение судебных актов | B57: 01 1 02 27010 | C57: 830 | D57: ='Функц. 2019'!F207 -> 10467.4
A58: Уплата налогов, сборов и иных платежей | B58: 01 1 02 27010 | C58: 850 | D58: ='Функц. 2019'!F208 -> 513
A59: Расходы на уплату членских взносов в Совет муниципальных образований Московской области | B59: =B60 -> 01 1 02 27020 | D59: =D61 -> 133
A60: Иные бюджетные ассигнования | B60: =B61 -> 01 1 02 27020 | C60: 800 | D60: =D61 -> 133
A61: Уплата налогов, сборов и иных платежей | B61: 01 1 02 27020 | C61: 850 | D61: ='Функц. 2019'!F211 -> 133
A62: Основное мероприятие "Обеспечение мобилизационной готовности экономики" | B62: 01 1 03 00000 | D62: =D63 -> 298
A63: Мероприятия по обеспечению мобилизационной готовности экономики | B63: =B64 -> 01 1 03 00080 | D63: 298
A64: Закупка товаров, работ и услуг для обеспечения государственных (муниципальных) нужд | B64: 01 1 03 00080 | C64: 200 | D64: 298
A65: Иные закупки товаров, работ и услуг для обеспечения государственных (муниципальных) нужд | B65: 01 1 03 00080 | C65: 240 | D65: ='Функц. 2019'!F292 -> 298
A66: Основное мероприятие "Обеспечение деятельности муниципальных казенных учреждений" | B66: 01 1 04 00000 | D66: =D67+D74 -> 54716.3
A67: Расходы на содержание и обеспечение деятельности муниципального казенного учреждения "Комитет по торгам города Лыткарино" | B67: =B68 -> 01 1 04 13590 | D67: =D68+D70+D72 -> 10867.1
A68: Расходы на выплаты персоналу в целях обеспечения выполнения функций государственными (муниципальными) органами, казенными учреждениями, органами управления государственными внебюджетными фондами | B68: =B69 -> 01 1 04 13590 | C68: 100 | D68: =D69 -> 9837.8
A69: Расходы на выплаты персоналу казенных учреждений | B69: =B70 -> 01 1 04 13590 | C69: 110 | D69: ='Функц. 2019'!F215 -> 9837.8
A70: Закупка товаров, работ и услуг для обеспечения государственных (муниципальных) нужд | B70: =B71 -> 01 1 04 13590 | C70: 200 | D70: =D71 -> 944.7
A71: Иные закупки товаров, работ и услуг для обеспечения государственных (муниципальных) нужд | B71: 01 1 04 13590 | C71: 240 | D71: ='Функц. 2019'!F217 -> 944.7
A72: Иные бюджетные ассигнования | B72: =B73 -> 01 1 04 13590 | C72: 800 | D72: =D73 -> 84.6
A73: Уплата налогов, сборов и иных платежей | B73: 01 1 04 13590 | C73: 850 | D73: ='Функц. 2019'!F219 -> 84.6
A74: Расходы на содержание и обеспечение деятельности муниципального казенного учреждения "Управление обеспечения деятельности Администрации города Лыткарино" | B74: =B75 -> 01 1 04 14590 | D74: =D75+D77+D79 -> 43849.2
A75: Расходы на выплаты персоналу в целях обеспечения выполнения функций государственными (муниципальными) органами, казенными учреждениями, органами управления государственными внебюджетными фондами | B75: =B76 -> 01 1 04 14590 | C75: 100 | D75: =D76 -> 42935.3
A76: Расходы на выплаты персоналу казенных учреждений | B76: =B77 -> 01 1 04 14590 | C76: 110 | D76: ='Функц. 2019'!F222 -> 42935.3
A77: Закупка товаров, работ и услуг для обеспечения государственных (муниципальных) нужд | B77: =B78 -> 01 1 04 14590 | C77: 200 | D77: =D78 -> 705.1
A78: Иные закупки товаров, работ и услуг для обеспечения государственных (муниципальных) нужд | B78: 01 1 04 14590 | C78: 240 | D78: ='Функц. 2019'!F224 -> 705.1
A79: Иные бюджетные ассигнования | B79: =B80 -> 01 1 04 14590 | C79: 800 | D79: =D80 -> 208.8
A80: Уплата налогов, сборов и иных платежей | B80: 01 1 04 14590 | C80: 850 | D80: ='Функц. 2019'!F226 -> 208.8
A81: Основное мероприятие "Составление (изменение) списков кандидатов в присяжные заседатели федеральных судов общей юрисдикции Российской Федерации" | B81: 01 1 05 00000 | D81: =D82 -> 44
A82: Составление (изменение) списков кандидатов в присяжные заседатели федеральных судов общей юрисдикции Российской Федерации | B82: 01 1 05 51200 | D82: =D83 -> 44
A83: Закупка товаров, работ и услуг для обеспечения государственных (муниципальных) нужд | B83: 01 1 05 51200 | C83: 200 | D83: =D84 -> 44
A84: Иные закупки товаров, работ и услуг для обеспечения государственных (муниципальных) нужд | B84: 01 1 05 51200 | C84: 240 | D84: ='ведом. 2019'!AD116 -> 44
A85: Подпрограмма "Создание условий для оказания медицинской помощи на территории города Лыткарино" | B85: 01 2 00 00000 | D85: =D86+D94+D90 -> 15130
A86: Основное мероприятие "Предоставление целевой субсидии на компенсацию расходов на оплату жилых помещений" | B86: 01 2 01 00000 | D86: =D87 -> 2132
A87: Расходы на предоставление целевой субсидии на компенсацию расходов на оплату жилых помещений | B87: 01 2 01 00010 | D87: 2132
A88: Социальное обеспечение и иные выплаты населению | B88: 01 2 01 00010 | C88: 300 | D88: 2132
A89: Социальные выплаты гражданам, кроме публичных нормативных социальных выплат | B89: 01 2 01 00010 | C89: 320 | D89: ='Функц. 2019'!F1038 -> 2132 | E89: 500
A90: Основное мероприятие "Частичная компенсация расходов на проезд общественным транспортом к месту работы и обратно отдельным категориям медицинских работников" | B90: 01 2 02 00000 | D90: =D91 -> 148
A91: Расходы на частичную компенсацию расходов на проезд общественным транспортом к месту работы и обратно отдельным категориям медицинских работников | B91: =B92 -> 01 2 02 00010 | D91: 148
A92: Социальное обеспечение и иные выплаты населению | B92: =B93 -> 01 2 02 00010 | C92: 300 | D92: 148
A93: Социальные выплаты гражданам, кроме публичных нормативных социальных выплат | B93: 01 2 02 00010 | C93: 320 | D93: ='Функц. 2019'!F1042 -> 148
A94: Основное мероприятие "Обеспечение полноценным питанием беременных женщин, кормящих матерей, а также детей в возрасте до трех лет" | B94: 01 2 04 00000 | D94: =D95 -> 12850
A95: Обеспечение полноценным питанием беременных женщин, кормящих матерей, а также детей в возрасте до трех лет в Московской области | B95: =B96 -> 01 2 04 62080 | D95: 12850
A96: Закупка товаров, работ и услуг для обеспечения государственных (муниципальных) нужд | B96: =B97 -> 01 2 04 62080 | C96: 200 | D96: 12850
A97: Иные закупки товаров, работ и услуг для обеспечения государственных (муниципальных) нужд | B97: 01 2 04 62080 | C97: 240 | D97: ='Функц. 2019'!F1046 -> 12850
A98: Подпрограмма «Снижение административных барьеров, повышение качества предоставления государственных и муниципальных услуг, в том числе на базе Многофункционального центра предоставления государственных и муниципальных услуг в городе Лыткарино" | B98: 01 3 00 00000 | D98: =D99 -> 35190.5
A99: Основное мероприятие "Организация деятельности многофункционального центра" | B99: 01 3 02 00000 | D99: =D100+D103 -> 35190.5
A100: Расходы на обеспечение деятельности (оказание услуг (выполнение работ)) многофункционального центра | B100: =B101 -> 01 3 02 18590 | D100: =D101 -> 34386.6
A101: Предоставление субсидий бюджетным, автономным учреждениям и иным некоммерческим организациям | B101: =B102 -> 01 3 02 18590 | C101: 600 | D101: 34386.6
A102: Субсидии бюджетным учреждениям | B102: 01 3 02 18590 | C102: 610 | D102: ='Функц. 2019'!F235 -> 34386.6
A103: Основное мероприятие "Совершенствование системы предоставления государственных и муниципальных услуг по принципу одного окна в многофункциональных центрах предоставления государственных и муниципальных услуг" | B103: 01 3 03 00000 | D103: =D104+D107 -> 803.9
A104: Создание системы обеспечения информационной безопасности | B104: =B105 -> 01 3 03 00020 | D104: =D105 -> 783.7
A105: Предоставление субсидий бюджетным, автономным учреждениям и иным некоммерческим организациям | B105: =B106 -> 01 3 03 00020 | C105: 600 | D105: =D106 -> 783.7
A106: Субсидии бюджетным учреждениям | B106: 01 3 03 00020 | C106: 610 | D106: ='Функц. 2019'!F239 -> 783.7
A107: Открытие двух удаленных рабочих мест в МФЦ по адресу: город Лыткарино, ул.Ухтомского, д.29 | B107: =B108 -> 01 3 03 00040 | D107: =D108 -> 20.2
A108: Предоставление субсидий бюджетным, автономным учреждениям и иным некоммерческим организациям | B108: =B109 -> 01 3 03 00040 | C108: 600 | D108: =D109 -> 20.2
A109: Субсидии бюджетным учреждениям | B109: 01 3 03 00040 | C109: 610 | D109: ='Функц. 2019'!F242 -> 20.2
A110: Подпрограмма «Развитие системы информирования населения о деятельности органов местного самоуправления города Лыткарино Московской области» | B110: 01 4 00 00000 | D110: =D111+D118 -> 8536.6
A111: Основное мероприятие "Информирование населения г.Лыткарино об основных событиях социально-экономического развития, общественно-политической жизни, о деятельности органов местного самоуправления муниципального образования Московской области" | B111: 01 4 01 00000 | D111: =D112+D115 -> 7587.4
A112: Мероприятия в области развития системы информирования населения | B112: =B113 -> 01 4 01 00010 | D112: =D113 -> 7485
A113: Закупка товаров, работ и услуг для обеспечения государственных (муниципальных) нужд | B113: =B114 -> 01 4 01 00010 | C113: 200 | D113: 7485
A114: Иные закупки товаров, работ и услуг для обеспечения государственных (муниципальных) нужд | B114: 01 4 01 00010 | C114: 240 | D114: ='Функц. 2019'!F84 -> 7485
A115: Осуществление взаимодействия органов местного самоуправления с печатными средствами массовой информации в области подписки,доставки и распространения тиражей печатных изданий | B115: =B116 -> 01 4 01 00020 | D115: =D116 -> 102.4
A116: Закупка товаров, работ и услуг для обеспечения государственных (муниципальных) нужд | B116: =B117 -> 01 4 01 00020 | C116: 200 | D116: 102.4
A117: Иные закупки товаров, работ и услуг для обеспечения государственных (муниципальных) нужд | B117: 01 4 01 00020 | C117: 240 | D117: ='ведом. 2019'!AD52+'ведом. 2019'!AD133+'ведом. 2019'!AD166+'ведом. 2019'!AD711+'ведом. 2019'!AD775+'ведом. 2019'!AD1063+'ведом. 2019'!AD1260+'ведом. 2019'!AD1371+'ведом. 2019'!AD1404+'ведом. 2019'!AD828 -> 102.4
A118: Основное мероприятие "Информирование населения муниципального образования посредством наружной рекламы" | B118: 01 4 02 00000 | D118: =D119 -> 949.2
A119: Мероприятия в области развития системы информирования населения | B119: =B120 -> 01 4 02 00010 | D119: =D120+D122 -> 949.2
A120: Закупка товаров, работ и услуг для обеспечения государственных (муниципальных) нужд | B120: =B121 -> 01 4 02 00010 | C120: 200 | D120: =D121 -> 946.2
A121: Иные закупки товаров, работ и услуг для обеспечения государственных (муниципальных) нужд | B121: 01 4 02 00010 | C121: 240 | D121: ='Функц. 2019'!F575 -> 946.2
A122: Иные бюджетные ассигнования | B122: =B123 -> 01 4 02 00010 | C122: 800 | D122: =D123 -> 3
A123: Уплата налогов, сборов и иных платежей | B123: 01 4 02 00010 | C123: 850 | D123: ='Функц. 2019'!F577 -> 3
A124: Подпрограмма "Развитие архивного дела в городе Лыткарино" | B124: 01 5 00 00000 | D124: =D125+D129 -> 555.1
A125: Основное мероприятие "Организация упорядочения документов постоянного хранения и по личному составу" | B125: 01 5 01 00000 | D125: =D126 -> 482.1
A126: Расходы для упорядочения документов постоянного хранения | B126: =B127 -> 01 5 01 00010 | D126: 482.1
A127: Закупка товаров, работ и услуг для обеспечения государственных (муниципальных) нужд | B127: =B128 -> 01 5 01 00010 | C127: 200 | D127: 482.1
A128: Иные закупки товаров, работ и услуг для обеспечения государственных (муниципальных) нужд | B128: 01 5 01 00010 | C128: 240 | D128: ='Функц. 2019'!F92 -> 482.1 | E128: 9
A129: Основное мероприятие "Создание оптимальных условий для хранения архивных документов" | B129: 01 5 02 00000 | D129: =D130 -> 73
A130: Расходы на ремонт архивохранилища и приобретения материальных запасов | B130: =B131 -> 01 5 02 00020 | D130: =D131 -> 73
A131: Закупка товаров, работ и услуг для обеспечения государственных (муниципальных) нужд | B131: =B132 -> 01 5 02 00020 | C131: 200 | D131: =D132 -> 73
A132: Иные закупки товаров, работ и услуг для обеспечения государственных (муниципальных) нужд | B132: 01 5 02 00020 | C132: 240 | D132: ='Функц. 2019'!F96 -> 73 | E132: -9
A133: Подпрограмма «Развитие муниципальной службы» | B133: 01 6 00 00000 | D133: =D135 -> 6264.1
A134: Основное мероприятие "Повышение мотивации к исполнению должностных обязанностей муниципальных служащих" | B134: 01 6 02 00000 | D134: =D135 -> 6264.1
A135: Пенсия за выслугу лет лицам, замещавшим муниципальные должности или должности муниципальной службы в органах местного самоуправления и избирательных комиссиях муниципального образования "Город Лыткарино Московской области" | B135: =B136 -> 01 6 02 00020 | D135: 6264.1
A136: Социальное обеспечение и иные выплаты населению | B136: =B137 -> 01 6 02 00020 | C136: 300 | D136: 6264.1
A137: Социальные выплаты гражданам, кроме публичных нормативных социальных выплат | B137: 01 6 02 00020 | C137: 320 | D137: ='Функц. 2019'!F1054 -> 6264.1 | E137: 54
A138: Подпрограмма "Архитектура и градостроительство города Лыткарино" | B138: 01 7 00 00000 | D138: =D139+D147+D143 -> 5600
A139: Основное мероприятие "Предупреждение и пресечение случаев самовольного строительства на территории города Лыткарино" | B139: 01 7 06 00000 | D139: =D140 -> 100
A140: Мероприятия в области строительства, архитектуры и градостроительства | B140: =B141 -> 01 7 06 00100 | D140: 100
A141: Закупка товаров, работ и услуг для обеспечения государственных (муниципальных) нужд | B141: =B142 -> 01 7 06 00100 | C141: 200 | D141: 100
A142: Иные закупки товаров, работ и услуг для обеспечения государственных (муниципальных) нужд | B142: 01 7 06 00100 | C142: 240 | D142: ='Функц. 2019'!F512 -> 100
A143: Основное мероприятие "Разработка проектной документации для строительства линейного объекта капитального строительства - дороги к Индустриальному парку "Лыткарино" | B143: 01 7 09 00000 | D143: =D144 -> 4500
A144: Мероприятия в области строительства,архитектуры и градостроительства | B144: 01 7 09 00100 | D144: =D145 -> 4500
A145: Закупка товаров, работ и услуг для обеспечения государственных (муниципальных) нужд | B145: 01 7 09 00100 | C145: 200 | D145: =D146 -> 4500
A146: Иные закупки товаров, работ и услуг для обеспечения государственных (муниципальных) нужд | B146: 01 7 09 00100 | C146: 240 | D146: ='Функц. 2019'!F438 -> 4500
A147: Основное мероприятие "Выполнение работ по отсыпке щебнем линейных объектов транспортной инфраструктуры, расположенных в границах указанной территории" | B147: 01 7 10 00000 | D147: =D148 -> 1000
A148: Мероприятия в области строительства,архитектуры и градостроительства | B148: =B149 -> 01 7 10 00100 | D148: =D149 -> 1000
A149: Закупка товаров, работ и услуг для обеспечения государственных (муниципальных) нужд | B149: =B150 -> 01 7 10 00100 | C149: 200 | D149: =D150 -> 1000
A150: Иные закупки товаров, работ и услуг для обеспечения государственных (муниципальных) нужд | B150: 01 7 10 00100 | C150: 240 | D150: ='Функц. 2019'!F442 -> 1000
A151: Подпрограмма «Развитие земельно-имущественного комплекса в городе Лыткарино» | B151: 01 8 00 00000 | D151: =D152+D156+D164+D160 -> 16969.6
A152: Основное мероприятие "Государственный кадастровый учет и государственная регистрация прав" | B152: 01 8 01 00000 | D152: =D153 -> 772
A153: Постановка на государственный кадастровый учет и государственная регистрация прав | B153: =B154 -> 01 8 01 00050 | D153: 772
A154: Закупка товаров, работ и услуг для обеспечения государственных (муниципальных) нужд | B154: =B155 -> 01 8 01 00050 | C154: 200 | D154: 772
A155: Иные закупки товаров, работ и услуг для обеспечения государственных (муниципальных) нужд | B155: 01 8 01 00050 | C155: 240 | D155: ='Функц. 2019'!F252 -> 772 | E155: -83
A156: Основное мероприятие "Рыночная оценка муниципального имущества " | B156: 01 8 02 00000 | D156: =D157 -> 500
A157: Мероприятия по рыночной оценке продажи муниципального имущества и прав аренды муниципального имущества | B157: =B158 -> 01 8 02 00110 | D157: =D159 -> 500
A158: Закупка товаров, работ и услуг для обеспечения государственных (муниципальных) нужд | B158: =B159 -> 01 8 02 00110 | C158: 200 | D158: =D159 -> 500
A159: Иные закупки товаров, работ и услуг для обеспечения государственных (муниципальных) нужд | B159: 01 8 02 00110 | C159: 240 | D159: ='Функц. 2019'!F256 -> 500
A160: ='Функц. 2019'!A257 -> Основное мероприятие "Содержание и обслуживание муниципальной казны " | B160: ='Функц. 2019'!D257 -> 01 8 03 00000 | D160: ='Функц. 2019'!F257 -> 9.7
A161: ='Функц. 2019'!A258 -> Содержание и обслуживание казны муниципального образования "Город Лыткарино" | B161: ='Функц. 2019'!D258 -> 01 8 03 00120 | D161: ='Функц. 2019'!F258 -> 9.7
A162: ='Функц. 2019'!A259 -> Закупка товаров, работ и услуг для обеспечения государственных (муниципальных) нужд | B162: ='Функц. 2019'!D259 -> 01 8 03 00120 | C162: ='Функц. 2019'!E259 -> 200 | D162: ='Функц. 2019'!F259 -> 9.7
A163: ='Функц. 2019'!A260 -> Иные закупки товаров, работ и услуг для обеспечения государственных (муниципальных) нужд | B163: ='Функц. 2019'!D260 -> 01 8 03 00120 | C163: ='Функц. 2019'!E260 -> 240 | D163: ='Функц. 2019'!F260 -> 9.7 | E163: 9.7
A164: Основное мероприятие "Перечисление региональному оператору взносов на капитальный ремонт в части муниципального имущества ( жилой и нежилой фонд)" | B164: 01 8 04 00000 | D164: =D165 -> 15687.9
A165: Перечисление региональному оператору взносов на капитальный ремонт в части муниципального имущества | B165: =B166 -> 01 8 04 00060 | D165: 15687.9
A166: Иные бюджетные ассигнования | B166: =B167 -> 01 8 04 00060 | C166: 800 | D166: 15687.9
A167: Уплата налогов, сборов и иных платежей | B167: 01 8 04 00060 | C167: 850 | D167: ='Функц. 2019'!F538 -> 15687.9
A168: Подпрограмма "Управление муниципальными финансами города Лыткарино" | B168: 01 9 00 00000 | D168: =D169 -> 25520.6
A169: Основное мероприятие "Обеспечение своевременности и полноты исполнения долговых обязательств в части расходов на обслуживание муниципального долга" | B169: 01 9 01 00000 | D169: 25520.6
A170: Процентные платежи по долговым обязательствам | B170: =B171 -> 01 9 01 00010 | D170: =D171 -> 25520.6
A171: Обслуживание государственного (муниципального) долга | B171: =B172 -> 01 9 01 00010 | C171: 700 | D171: 25520.6
A172: Обслуживание муниципального долга | B172: 01 9 01 00010 | C172: 730 | D172: ='Функц. 2019'!F1187 -> 25520.6
A173: Муниципальная программа «Культура города Лыткарино» на 2017-2021 годы | B173: 02 0 00 00000 | D173: =D174+D206+D214+D221+D192 -> 154455.2
A174: Подпрограмма «Организация досуга, предоставление услуг в сфере культуры и доступа к музейным фондам, развитие образования в сфере культуры и искусства в городе Лыткарино» | B174: 02 2 00 00000 | D174: =D175 -> 131454.7
A175: Основное мероприятие "Выделение средств субсидии на выполнение муниципального задания" | B175: 02 2 01 00000 | D175: =D176+D179+D186+D189 -> 131454.7
A176: Расходы на обеспечение деятельности (оказание услуг (выполнение работ)) муниципальных учреждений по внешкольной работе с детьми (музыкальная школа) | B176: =B177 -> 02 2 01 06590 | D176: =D177 -> 36166
A177: Предоставление субсидий бюджетным, автономным учреждениям и иным некоммерческим организациям | B177: =B178 -> 02 2 01 06590 | C177: 600 | D177: 36166
A178: Субсидии бюджетным учреждениям | B178: 02 2 01 06590 | C178: 610 | D178: ='Функц. 2019'!F858 -> 36166
A179: Расходы на содержание и обеспечение деятельности дворцов и домов культуры (оказание муниципальных услуг (выполнение работ)) | B179: 02 2 01 08590 | D179: =D180+D183 -> 51683.4
A180: Предоставление субсидии на выполнение муниципального задания МУ ДК "Мир" | B180: 02 2 01 08591 | D180: =D181 -> 29049
A181: Предоставление субсидий бюджетным, автономным учреждениям и иным некоммерческим организациям | B181: 02 2 01 08591 | C181: 600 | D181: =D182 -> 29049
A182: Субсидии бюджетным учреждениям | B182: 02 2 01 08591 | C182: 610 | D182: ='Функц. 2019'!F986 -> 29049
A183: Предоставление субсидии на выполнение муниципального задания МУ ДК "Центр молодежи" | B183: =B184 -> 02 2 01 08592 | D183: =D184 -> 22634.4
A184: Предоставление субсидий бюджетным, автономным учреждениям и иным некоммерческим организациям | B184: 02 2 01 08592 | C184: 600 | D184: =D185 -> 22634.4
A185: Субсидии бюджетным учреждениям | B185: 02 2 01 08592 | C185: 610 | D185: ='Функц. 2019'!F989 -> 22634.4
A186: Расходы на содержание и обеспечение деятельности музеев и постоянных выставок | B186: =B187 -> 02 2 01 09590 | D186: =D187 -> 17629.7
A187: Предоставление субсидий бюджетным, автономным учреждениям и иным некоммерческим организациям | B187: =B188 -> 02 2 01 09590 | C187: 600 | D187: =D188 -> 17629.7
A188: Субсидии бюджетным учреждениям | B188: 02 2 01 09590 | C188: 610 | D188: ='Функц. 2019'!F992 -> 17629.7
A189: Расходы на содержание и обеспечение деятельности библиотек | B189: =B190 -> 02 2 01 10590 | D189: =D190 -> 25975.6
A190: Предоставление субсидий бюджетным, автономным учреждениям и иным некоммерческим организациям | B190: 02 2 01 10590 | C190: 600 | D190: =D191 -> 25975.6
A191: Субсидии бюджетным учреждениям | B191: 02 2 01 10590 | C191: 610 | D191: ='Функц. 2019'!F995 -> 25975.6
A192: Подпрограмма «Укрепление материально-технической базы и благоустройство территории муниципальных учреждений в сфере культуры города Лыткарино" | B192: 02 3 00 00000 | D192: =D193 -> 2965.6
A193: Основное мероприятие «Укрепление материально-технической базы муниципальных учреждений в сфере культуры города Лыткарино" | B193: 02 3 01 00000 | D193: =D194+D197+D200+D203 -> 2965.6
A194: Укрепление материльно-технической базы МУ "Дом культуры "Центр молодежи" | B194: 02 3 01 00040 | D194: =D195 -> 1030
A195: Предоставление субсидий бюджетным, автономным учреждениям и иным некоммерческим организациям | B195: 02 3 01 00040 | C195: 600 | D195: =D196 -> 1030
A196: Субсидии бюджетным учреждениям | B196: 02 3 01 00040 | C196: 610 | D196: ='Функц. 2019'!F1000 -> 1030
A197: Укрепление материльно-технической базы МУ "Лыткаринский историко-краеведческий музей" | B197: 02 3 01 00060 | D197: =D198 -> 435.6
A198: Предоставление субсидий бюджетным, автономным учреждениям и иным некоммерческим организациям | B198: 02 3 01 00060 | C198: 600 | D198: =D199 -> 435.6
A199: Субсидии бюджетным учреждениям | B199: 02 3 01 00060 | C199: 610 | D199: ='Функц. 2019'!F1003 -> 435.6
A200: Укрепление материльно-технической базы МУ "Детская музыкальная школа" | B200: 02 3 01 00070 | D200: =D201 -> 1000
A201: Предоставление субсидий бюджетным, автономным учреждениям и иным некоммерческим организациям | B201: 02 3 01 00070 | C201: 600 | D201: =D202 -> 1000
A202: Субсидии бюджетным учреждениям | B202: 02 3 01 00070 | C202: 610 | D202: ='Функц. 2019'!F863 -> 1000
A203: Приобретение технического оборудования (компьютеры, мониторы, МФУ, проекторы) и программного обеспечения для МУ "Централизованная библиотечная система" | B203: 02 3 01 04400 | D203: =D204 -> 500
... 698 more rows

Sheet Р., Пр.2019
B1: Приложение 10
B2: к изменениям и дополнениям
B3: к бюджету города Лыткарино на 2019 год
B4: и на плановый период 2020 и 2021 годов
B6: (Приложение 11
B7: к бюджету города Лыткарино на 2019 год
B8: и на плановый период 2020 и 2021 годов)
A9: Расходы бюджета города Лыткарино по разделам и подразделам классификации расходов бюджетов на 2019 год
D11: (тыс.руб.)
A12: Наименования | B12: Рз | C12: ПР | D12: Сумма на 2019 год
A14: 1 | B14: 2 | C14: 3 | D14: 4
A15: Общегосударственные вопросы | B15: 01 | D15: =D16+D17+D18+D19+D20+D21+D22 -> 243717.5
A16: Функционирование высшего должностного лица субъекта Российской Федерации и муниципального образования | B16: 01 | C16: 02 | D16: ='Функц. 2019'!F19 -> 2650
A17: Функционирование законодательных (представительных) органов государственной власти и представительных органов муниципальных образований | B17: 01 | C17: 03 | D17: ='Функц. 2019'!F24 -> 11653 | E17: 230
A18: Функционирование Правительства Российской Федерации, высших исполнительных органов государственной власти субъектов Российской Федерации, местных администраций | B18: 01 | C18: 04 | D18: ='Функц. 2019'!F57 -> 64180.5
A19: Обеспечение деятельности финансовых,налоговых и таможенных органов и органов финансового (финансово-бюджетного) надзора | B19: 01 | C19: 06 | D19: ='Функц. 2019'!F105 -> 23726 | E19: -62.5
A20: Обеспечение проведения выборов и референдумов | B20: 01 | C20: 07 | D20: ='Функц. 2019'!F142 -> 4352.5
A21: Резервные фонды | B21: 01 | C21: 11 | D21: ='Функц. 2019'!F162 -> 3251.4
A22: Другие общегосударственные вопросы | B22: 01 | C22: 13 | D22: ='Функц. 2019'!F174 -> 133904.1 | E22: 9.7
A23: Национальная оборона | B23: 02 | D23: =D24+D25 -> 3774
A24: Мобилизационная и вневойсковая подготовка | B24: 02 | C24: 03 | D24: ='Функц. 2019'!F279 -> 3476
A25: Мобилизационная подготовка экономики | B25: 02 | C25: 04 | D25: ='Функц. 2019'!F286 -> 298
A26: Национальная безопасность и правоохранительная деятельность | B26: 03 | D26: =D27+D28 -> 34615.1
A27: Защита населения и территории от чрезвычайных ситуаций природного и техногенного характера, гражданская оборона | B27: 03 | C27: 09 | D27: ='Функц. 2019'!F294 -> 24684
A28: Другие вопросы в области национальной безопасности и правоохранительной деятельности | B28: 03 | C28: 14 | D28: ='Функц. 2019'!F351 -> 9931.1
A29: Национальная экономика | B29: 04 | D29: =D31+D34+D32+D33+D30 -> 105272.1
A30: Сельское хозяйство и рыболовство | B30: 04 | C30: 05 | D30: ='Функц. 2019'!F415 -> 846
A31: Транспорт | B31: 04 | C31: 08 | D31: ='Функц. 2019'!F416 -> 21295.2 | E31: 200
A32: Дорожное хозяйство (дорожные фонды) | B32: 04 | C32: 09 | D32: ='Функц. 2019'!F432 -> 73329 | E32: 62.5
A33: Связь и информатика | B33: 04 | C33: 10 | D33: ='Функц. 2019'!F482 -> 8651.3
A34: Другие вопросы в области национальной экономики | B34: 04 | C34: 12 | D34: ='Функц. 2019'!F506 -> 1150.6
A35: Жилищно-коммунальное хозяйство | B35: 05 | D35: =D36+D38+D39+D37 -> 274337.1
A36: Жилищное хозяйство | B36: 05 | C36: 01 | D36: ='Функц. 2019'!F532 -> 27111.4
A37: Коммунальное хозяйство | B37: 05 | C37: 02 | D37: ='Функц. 2019'!F551 -> 35700
A38: Благоустройство | B38: 05 | C38: 03 | D38: ='Функц. 2019'!F569 -> 187764.4 | E38: -120
A39: Другие вопросы в области жилищно-коммунального хозяйства | B39: 05 | C39: 05 | D39: ='Функц. 2019'!F640 -> 23761.3
A40: "Охрана окружающей среды" | B40: 06 | D40: =D42+D41 -> 1221569
A41: Сбор, удаление отходов и очистка сточных вод | B41: 06 | C41: 02 | D41: ='Функц. 2019'!F703 -> 1220903.8
A42: Другие вопросы в области охраны окружающей среды | B42: 06 | C42: 05 | D42: ='Функц. 2019'!F710 -> 665.2
A43: Образование | B43: 07 | D43: =D44+D45+D47+D48+D46 -> 1072975.4
A44: Дошкольное образование | B44: 07 | C44: 01 | D44: ='Функц. 2019'!F718 -> 444858.1 | E44: -211
A45: Общее образование | B45: 07 | C45: 02 | D45: ='Функц. 2019'!F767 -> 484787.9 | E45: -14532.1
A46: Дополнительное образование детей | B46: 07 | C46: 03 | D46: ='Функц. 2019'!F852 -> 101597.6
A47: Молодежная политика | B47: 07 | C47: 07 | D47: ='Функц. 2019'!F901 -> 1747.9
A48: Другие вопросы в области образования | B48: 07 | C48: 09 | D48: ='Функц. 2019'!F921 -> 39983.9
A49: 1 | B49: 2 | C49: 3 | D49: 4
A50: Культура, кинематография | B50: 08 | D50: =D51 -> 106633.9
A51: Культура | B51: 08 | C51: 01 | D51: ='Функц. 2019'!F979 -> 106633.9 | E51: 50
A52: Здравоохранение | B52: 09 | D52: =D53 -> 15130
A53: Другие вопросы в области здравоохранения | B53: 09 | C53: 09 | D53: ='Функц. 2019'!F1032 -> 15130 | E53: 500
A54: Социальная политика | B54: 10 | D54: =D55+D56+D58+D57 -> 96069.4
A55: Пенсионное обеспечение | B55: 10 | C55: 01 | D55: ='Функц. 2019'!F1048 -> 6264.1 | E55: 54
A56: Социальное обеспечение населения | B56: 10 | C56: 03 | D56: ='Функц. 2019'!F1055 -> 28850.6
A57: Охрана семьи и детства | B57: 10 | C57: 04 | D57: ='Функц. 2019'!F1097 -> 57418.7
A58: Другие вопросы в области социальной политики | B58: 10 | C58: 06 | D58: ='Функц. 2019'!F1117 -> 3536 | E58: 156+450
A59: Физическая культура и спорт | B59: 11 | D59: =D61+D60 -> 99446.7
A60: Физическая культура | B60: 11 | C60: 01 | D60: ='Функц. 2019'!F1129 -> 29771.2
A61: Массовый спорт | B61: 11 | C61: 02 | D61: ='Функц. 2019'!F1140 -> 69675.5
A62: Обслуживание государственного и муниципального долга | B62: 13 | D62: =D63 -> 25520.6
A63: Обслуживание государственного внутреннего и муниципального долга | B63: 13 | C63: 01 | D63: ='Функц. 2019'!F1181 -> 25520.6
A64: ВСЕГО | D64: =D62+D59+D54+D52+D50+D43+D35+D29+D26+D23+D15+D40 -> 3299060.8

Sheet ведом. 2019
AB1: Приложение 6
AB2: к изменениям и дополнениям
AB3: к бюджету города Лыткарино на 2019 год
AB4: и на плановый период 2020 и 2021 годов
AB5: Приложение 7
AB6: (Приложение 7
AB7: к бюджету города Лыткарино на 2019 год
AB8: и на плановый период 2020 и 2021 годов)
X10: Ведомственная структура расходов бюджета города Лыткарино на 2019 год
AD11: (тыс.руб.)
X13: Наименования | Y13: Код главного распоря- дителя | Z13: Рз | AA13: ПР | AB13: ЦСР | AC13: ВР | AD13: Сумма на 2019 год
X14: 1 | Y14: 2 | Z14: 3 | AA14: 4 | AB14: 5 | AC14: 6 | AD14: 7
X15: Администрация городского округа Лыткарино | Y15: 001 | AD15: =AD16+AD144+AD159+AD284+AD360+AD477+AD533+AD608+AD654+AD695+AD469+AD592 -> 670581.8
X16: Общегосударственные вопросы | Y16: 001 | Z16: 01 | AD16: =AD17+AD22+AD70+AD82 -> 173249.8
X17: Функционирование высшего должностного лица субъекта Российской Федерации и муниципального образования | Y17: 001 | Z17: 01 | AA17: 02 | AD17: =AD18 -> 2650
X18: Руководство и управление в сфере установленных функций органов местного самоуправления, избирательных комиссий муниципальных образований | Y18: 001 | Z18: 01 | AA18: 02 | AB18: 95 0 00 00000 | AD18: =AD19 -> 2650
X19: Глава муниципального образования | Y19: 001 | Z19: 01 | AA19: 02 | AB19: =AB20 -> 95 0 00 01000 | AD19: 2650
X20: Расходы на выплаты персоналу в целях обеспечения выполнения функций государственными (муниципальными) органами, казенными учреждениями, органами управления государственными внебюджетными фондами | Y20: 001 | Z20: 01 | AA20: 02 | AB20: =AB21 -> 95 0 00 01000 | AC20: 100 | AD20: 2650
X21: Расходы на выплаты персоналу государственных (муниципальных) органов | Y21: 001 | Z21: 01 | AA21: 02 | AB21: 95 0 00 01000 | AC21: 120 | AD21: =2306.1+230.7+113.2 -> 2650
X22: Функционирование Правительства Российской Федерации, высших исполнительных органов государственной власти субъектов Российской Федерации, местных администраций | Y22: 001 | Z22: 01 | AA22: 04 | AD22: =AD23+AD62 -> 64180.5
X23: Муниципальная программа «Муниципальное управление города Лыткарино на 2017-2021 годы» | Y23: 001 | Z23: 01 | AA23: 04 | AB23: 01 0 00 00000 | AD23: =AD24+AD45+AD53 -> 62105.5
X24: Обеспечивающая подпрограмма | Y24: 001 | Z24: 01 | AA24: 04 | AB24: 01 1 00 00000 | AD24: =AD25 -> 54018.8
X25: Основное мероприятие " Обеспечение деятельности Администрации городcкого округа Лыткарино и ее функциональных органов" | Y25: 001 | Z25: 01 | AA25: 04 | AB25: 01 1 01 00000 | AD25: =AD26+AD40 -> 54018.8
X26: Центральный аппарат | Y26: 001 | Z26: 01 | AA26: 04 | AB26: 01 1 01 04000 | AD26: =AD27+AD34+AD37 -> 52406.8
X27: Расходы на обеспечение деятельности центрального аппарата | Y27: 001 | Z27: 01 | AA27: 04 | AB27: =AB30 -> 01 1 01 04010 | AD27: =AD30+AD32+AD28 -> 7467.5
X28: Расходы на выплаты персоналу в целях обеспечения выполнения функций государственными (муниципальными) органами, казенными учреждениями, органами управления государственными внебюджетными фондами | Y28: 001 | Z28: 01 | AA28: 04 | AB28: =AB29 -> 01 1 01 04010 | AC28: 100 | AD28: =AD29 -> 13.5
X29: Расходы на выплаты персоналу государственных (муниципальных) органов | Y29: 001 | Z29: 01 | AA29: 04 | AB29: =AB30 -> 01 1 01 04010 | AC29: 120 | AD29: 13.5
X30: Закупка товаров, работ и услуг для обеспечения государственных (муниципальных) нужд | Y30: 001 | Z30: 01 | AA30: 04 | AB30: =AB31 -> 01 1 01 04010 | AC30: 200 | AD30: =AD31 -> 7278.8
X31: Иные закупки товаров, работ и услуг для обеспечения государственных (муниципальных) нужд | Y31: 001 | Z31: 01 | AA31: 04 | AB31: =AB32 -> 01 1 01 04010 | AC31: 240 | AD31: =6460.8+65+1028-275 -> 7278.8
X32: Иные бюджетные ассигнования | Y32: 001 | Z32: 01 | AA32: 04 | AB32: =AB33 -> 01 1 01 04010 | AC32: 800 | AD32: =AD33 -> 175.2
X33: Уплата налогов, сборов и иных платежей | Y33: 001 | Z33: 01 | AA33: 04 | AB33: 01 1 01 04010 | AC33: 850 | AD33: =125.2+50 -> 175.2
X34: Расходы на содержание лиц, замещающих должности, не являющиеся должностями муниципальной службы | Y34: 001 | Z34: 01 | AA34: 04 | AB34: =AB35 -> 01 1 01 04020 | AD34: =AD36 -> 13510.9
X35: Расходы на выплаты персоналу в целях обеспечения выполнения функций государственными (муниципальными) органами, казенными учреждениями, органами управления государственными внебюджетными фондами | Y35: 001 | Z35: 01 | AA35: 04 | AB35: =AB36 -> 01 1 01 04020 | AC35: 100 | AD35: =AD36 -> 13510.9
X36: Расходы на выплаты персоналу государственных (муниципальных) органов | Y36: 001 | Z36: 01 | AA36: 04 | AB36: 01 1 01 04020 | AC36: 120 | AD36: =11396.6+1139.7+974.6 -> 13510.9
X37: Расходы на содержание лиц, замещающих должности муниципальной службы | Y37: 001 | Z37: 01 | AA37: 04 | AB37: =AB38 -> 01 1 01 04030 | AD37: =AD38 -> 31428.4
X38: Расходы на выплаты персоналу в целях обеспечения выполнения функций государственными (муниципальными) органами, казенными учреждениями, органами управления государственными внебюджетными фондами | Y38: 001 | Z38: 01 | AA38: 04 | AB38: =AB39 -> 01 1 01 04030 | AC38: 100 | AD38: 31428.4
X39: Расходы на выплаты персоналу государственных (муниципальных) органов | Y39: 001 | Z39: 01 | AA39: 04 | AB39: 01 1 01 04030 | AC39: 120 | AD39: =27112.2+2711.2+1605 -> 31428.4
X40: Обеспечение переданных муниципальным районам и городским округам Московской области государственных полномочий по временному хранению, комплектованию, учету и использованию архивных документов, относящихся к собственности Московской области и временно хранящихся в муниципальных архивах | Y40: 001 | Z40: 01 | AA40: 04 | AB40: 01 1 01 60690 | AD40: =AD41+AD43 -> 1612
X41: Расходы на выплаты персоналу в целях обеспечения выполнения функций государственными (муниципальными) органами, казенными учреждениями, органами управления государственными внебюджетными фондами | Y41: 001 | Z41: 01 | AA41: 04 | AB41: 01 1 01 60690 | AC41: 100 | AD41: =AD42 -> 1575.5
X42: Расходы на выплаты персоналу государственных (муниципальных) органов | Y42: 001 | Z42: 01 | AA42: 04 | AB42: 01 1 01 60690 | AC42: 120 | AD42: =1436.5+139 -> 1575.5
X43: Закупка товаров, работ и услуг для обеспечения государственных (муниципальных) нужд | Y43: 001 | Z43: 01 | AA43: 04 | AB43: 01 1 01 60690 | AC43: 200 | AD43: =AD44 -> 36.5
X44: Иные закупки товаров, работ и услуг для обеспечения государственных (муниципальных) нужд | Y44: 001 | Z44: 01 | AA44: 04 | AB44: 01 1 01 60690 | AC44: 240 | AD44: 36.5
X45: Подпрограмма «Развитие системы информирования населения о деятельности органов местного самоуправления города Лыткарино Московской области» | Y45: 001 | Z45: 01 | AA45: 04 | AB45: 01 4 00 00000 | AD45: =AD46 -> 7531.6
X46: Основное мероприятие "Информирование населения г.Лыткарино об основных событиях социально-экономического развития, общественно-политической жизни, о деятельности органов местного самоуправления муниципального образования Московской области" | Y46: 001 | Z46: 01 | AA46: 04 | AB46: 01 4 01 00000 | AD46: =AD47+AD50 -> 7531.6
X47: Мероприятия в области развития системы информирования населения | Y47: 001 | Z47: 01 | AA47: 04 | AB47: =AB48 -> 01 4 01 00010 | AD47: =AD48 -> 7485
X48: Закупка товаров, работ и услуг для обеспечения государственных (муниципальных) нужд | Y48: 001 | Z48: 01 | AA48: 04 | AB48: =AB49 -> 01 4 01 00010 | AC48: 200 | AD48: 7485
X49: Иные закупки товаров, работ и услуг для обеспечения государственных (муниципальных) нужд | Y49: 001 | Z49: 01 | AA49: 04 | AB49: 01 4 01 00010 | AC49: 240 | AD49: =5856.8+250+660+619.8+100-1.6 -> 7485
X50: Осуществление взаимодействия органов местного самоуправления с печатными средствами массовой информации в области подписки,доставки и распространения тиражей печатных изданий | Y50: 001 | Z50: 01 | AA50: 04 | AB50: =AB51 -> 01 4 01 00020 | AD50: =AD51 -> 46.6
X51: Закупка товаров, работ и услуг для обеспечения государственных (муниципальных) нужд | Y51: 001 | Z51: 01 | AA51: 04 | AB51: =AB52 -> 01 4 01 00020 | AC51: 200 | AD51: 46.6
X52: Иные закупки товаров, работ и услуг для обеспечения государственных (муниципальных) нужд | Y52: 001 | Z52: 01 | AA52: 04 | AB52: 01 4 01 00020 | AC52: 240 | AD52: =46+0.6 -> 46.6
X53: Подпрограмма "Развитие архивного дела в городе Лыткарино" | Y53: 001 | Z53: 01 | AA53: 04 | AB53: 01 5 00 00000 | AD53: =AD54+AD58 -> 555.1
X54: Основное мероприятие "Организация упорядочения документов постоянного хранения и по личному составу" | Y54: 001 | Z54: 01 | AA54: 04 | AB54: 01 5 01 00000 | AD54: =AD55 -> 482.1
X55: Расходы для упорядочения документов постоянного хранения | Y55: 001 | Z55: 01 | AA55: 04 | AB55: =AB56 -> 01 5 01 00010 | AD55: 482.1
X56: Закупка товаров, работ и услуг для обеспечения государственных (муниципальных) нужд | Y56: 001 | Z56: 01 | AA56: 04 | AB56: =AB57 -> 01 5 01 00010 | AC56: 200 | AD56: 482.1
X57: Иные закупки товаров, работ и услуг для обеспечения государственных (муниципальных) нужд | Y57: 001 | Z57: 01 | AA57: 04 | AB57: 01 5 01 00010 | AC57: 240 | AD57: =470+430-165+18+28-307.9+9 -> 482.1 | AE57: 9
X58: Основное мероприятие "Создание оптимальных условий для хранения архивных документов" | Y58: 001 | Z58: 01 | AA58: 04 | AB58: 01 5 02 00000 | AD58: =AD59 -> 73
X59: Расходы на ремонт архивохранилища и приобретения материальных запасов | Y59: 001 | Z59: 01 | AA59: 04 | AB59: =AB60 -> 01 5 02 00020 | AD59: =AD60 -> 73
X60: Закупка товаров, работ и услуг для обеспечения государственных (муниципальных) нужд | Y60: 001 | Z60: 01 | AA60: 04 | AB60: =AB61 -> 01 5 02 00020 | AC60: 200 | AD60: =AD61 -> 73
X61: Иные закупки товаров, работ и услуг для обеспечения государственных (муниципальных) нужд | Y61: 001 | Z61: 01 | AA61: 04 | AB61: 01 5 02 00020 | AC61: 240 | AD61: =10+72-9 -> 73 | AE61: -9
X62: Муниципальная программа "Образование города Лыткарино" на 2017-2021 годы | Y62: 001 | Z62: 01 | AA62: 04 | AB62: 03 0 00 00000 | AD62: =AD63 -> 2075
X63: Подпрограмма "Общее образование" | Y63: 001 | Z63: 01 | AA63: 04 | AB63: 03 2 00 00000 | AD63: 2075
X64: Основное мероприятие "Обеспечение переданных государственных полномочий в сфере образования и организации деятельности комиссий по делам несовершеннолетних и защите их прав" | Y64: 001 | Z64: 01 | AA64: 04 | AB64: 03 2 03 00000 | AD64: 2075
X65: Обеспечение переданного государственного полномочия по созданию комиссий по делам несовершеннолетних и защите их прав городов и районов | Y65: 001 | Z65: 01 | AA65: 04 | AB65: 03 2 03 60680 | AD65: =AD66+AD68 -> 2075
X66: Расходы на выплаты персоналу в целях обеспечения выполнения функций государственными (муниципальными) органами, казенными учреждениями, органами управления государственными внебюджетными фондами | Y66: 001 | Z66: 01 | AA66: 04 | AB66: 03 2 03 60680 | AC66: 100 | AD66: =AD67 -> 1901.9
X67: Расходы на выплаты персоналу государственных (муниципальных) органов | Y67: 001 | Z67: 01 | AA67: 04 | AB67: 03 2 03 60680 | AC67: 120 | AD67: =1748.9+153 -> 1901.9
X68: Закупка товаров, работ и услуг для обеспечения государственных (муниципальных) нужд | Y68: 001 | Z68: 01 | AA68: 04 | AB68: 03 2 03 60680 | AC68: 200 | AD68: =AD69 -> 173.1
X69: Иные закупки товаров, работ и услуг для обеспечения государственных (муниципальных) нужд | Y69: 001 | Z69: 01 | AA69: 04 | AB69: 03 2 03 60680 | AC69: 240 | AD69: 173.1
X70: Резервные фонды | Y70: 001 | Z70: 01 | AA70: 11 | AD70: =AD71+AD78 -> 3251.4
X71: Муниципальная программа "Безопасность города Лыткарино" на 2017-2021 годы | Y71: 001 | Z71: 01 | AA71: 11 | AB71: 08 0 00 00000 | AD71: =AD72 -> 2100
X72: Подпрограмма "Снижение рисков и смягчение последствий чрезвычайных ситуаций природного и техногенного характера" | Y72: 001 | Z72: 01 | AA72: 11 | AB72: 08 3 00 00000 | AD72: 2100
X73: Основное мероприятие "Создание резервного фонда Администрации городского округа Лыткарино для ликвидации чрезвычайных ситуаций, в том числе террористических актов" | Y73: 001 | Z73: 01 | AA73: 11 | AB73: 08 3 07 00000 | AD73: =AD75 -> 2100
X74: Мероприятия в области национальной безопасности и правоохранительной деятельности | Y74: 001 | Z74: 01 | AA74: 11 | AB74: 08 3 07 12000 | AD74: =AD75 -> 2100
X75: Создание резервного фонда Администрации городского округа Лыткарино для ликвидации чрезвычайных ситуаций, в том числе террористических актов | Y75: 001 | Z75: 01 | AA75: 11 | AB75: =AB76 -> 08 3 07 12060 | AD75: 2100
X76: Иные бюджетные ассигнования | Y76: 001 | Z76: 01 | AA76: 11 | AB76: =AB77 -> 08 3 07 12060 | AC76: 800 | AD76: 2100
X77: Резервные средства | Y77: 001 | Z77: 01 | AA77: 11 | AB77: 08 3 07 12060 | AC77: 870 | AD77: =2400-300 -> 2100
X78: Непрограммные расходы бюджета города Лыткарино | Y78: 001 | Z78: 01 | AA78: 11 | AB78: 99 0 00 00000 | AD78: =AD79 -> 1151.4
X79: Резервные фонды местных администраций на непредвиденные расходы | Y79: 001 | Z79: 01 | AA79: 11 | AB79: 99 0 00 00010 | AD79: =AD80 -> 1151.4
X80: Иные бюджетные ассигнования | Y80: 001 | Z80: 01 | AA80: 11 | AB80: 99 0 00 00010 | AC80: 800 | AD80: =AD81 -> 1151.4
X81: Резервные средства | Y81: 001 | Z81: 01 | AA81: 11 | AB81: 99 0 00 00010 | AC81: 870 | AD81: =11386.1+799.7-65-1678+368-9659.4 -> 1151.4
X82: Другие общегосударственные вопросы | Y82: 001 | Z82: 01 | AA82: 13 | AD82: =AD83+AD134 -> 103167.9
X83: Муниципальная программа «Муниципальное управление города Лыткарино на 2017-2021 годы» | Y83: 001 | Z83: 01 | AA83: 13 | AB83: 01 0 00 00000 | AD83: =AD84+AD117+AD129 -> 91088.5
X84: Обеспечивающая подпрограмма | Y84: 001 | Z84: 01 | AA84: 13 | AB84: 01 1 00 00000 | AD84: =AD98+AD89+AD85+AD113 -> 55884.8
X85: Основное мероприятие " Обеспечение деятельности Администрации городcкого округа Лыткарино и ее функциональных органов" | Y85: 001 | Z85: 01 | AA85: 13 | AB85: 01 1 01 00000 | AD85: =AD86 -> 235
X86: Расходы для осуществления государственных полномочий в соответствии с Законом Московской области №107/2014-ОЗ «О наделении органов местного самоуправления муниципальных образований Московской области отдельными государственными полномочиями Московской области» | Y86: 001 | Z86: 01 | AA86: 13 | AB86: 01 1 01 60700 | AD86: =AD87 -> 235
X87: Закупка товаров, работ и услуг для обеспечения государственных (муниципальных) нужд | Y87: 001 | Z87: 01 | AA87: 13 | AB87: 01 1 01 60700 | AC87: 200 | AD87: =AD88 -> 235
X88: Иные закупки товаров, работ и услуг для обеспечения государственных (муниципальных) нужд | Y88: 001 | Z88: 01 | AA88: 13 | AB88: 01 1 01 60700 | AC88: 240 | AD88: =218+17 -> 235
X89: Основное мероприятие " Прочие общегосударственные мероприятия" | Y89: 001 | Z89: 01 | AA89: 13 | AB89: 01 1 02 00000 | AD89: =AD90 -> 889.5
X90: Прочие общегосударственные мероприятия | Y90: 001 | Z90: 01 | AA90: 13 | AB90: 01 1 02 27000 | AD90: =AD95+AD91 -> 889.5
X91: Исполнение судебных актов по обращениям и взыскания на средства бюджета | Y91: 001 | Z91: 01 | AA91: 13 | AB91: =AB92 -> 01 1 02 27010 | AD91: =AD92 -> 756.5
X92: Иные бюджетные ассигнования | Y92: 001 | Z92: 01 | AA92: 13 | AB92: =AB93 -> 01 1 02 27010 | AC92: 800 | AD92: =AD93+AD94 -> 756.5
X93: Исполнение судебных актов | Y93: 001 | Z93: 01 | AA93: 13 | AB93: 01 1 02 27010 | AC93: 830 | AD93: =200+43.5 -> 243.5
X94: Уплата налогов, сборов и иных платежей | Y94: 001 | Z94: 01 | AA94: 13 | AB94: 01 1 02 27010 | AC94: 850 | AD94: =240+6+250+2+15 -> 513
X95: Расходы на уплату членских взносов в Совет муниципальных образований Московской области | Y95: 001 | Z95: 01 | AA95: 13 | AB95: =AB96 -> 01 1 02 27020 | AD95: =AD97 -> 133
X96: Иные бюджетные ассигнования | Y96: 001 | Z96: 01 | AA96: 13 | AB96: =AB97 -> 01 1 02 27020 | AC96: 800 | AD96: =AD97 -> 133
X97: Уплата налогов, сборов и иных платежей | Y97: 001 | Z97: 01 | AA97: 13 | AB97: 01 1 02 27020 | AC97: 850 | AD97: 133
X98: Основное мероприятие "Обеспечение деятельности муниципальных казенных учреждений" | Y98: 001 | Z98: 01 | AA98: 13 | AB98: 01 1 04 00000 | AD98: =AD99+AD106 -> 54716.3
X99: Расходы на обеспечение деятельности муниципального казенного учреждения "Комитет по торгам города Лыткарино" | Y99: 001 | Z99: 01 | AA99: 13 | AB99: =AB100 -> 01 1 04 13590 | AD99: =AD100+AD102+AD104 -> 10867.1
X100: Расходы на выплаты персоналу в целях обеспечения выполнения функций государственными (муниципальными) органами, казенными учреждениями, органами управления государственными внебюджетными фондами | Y100: 001 | Z100: 01 | AA100: 13 | AB100: =AB101 -> 01 1 04 13590 | AC100: 100 | AD100: =AD101 -> 9837.8
X101: Расходы на выплаты персоналу казенных учреждений | Y101: 001 | Z101: 01 | AA101: 13 | AB101: =AB102 -> 01 1 04 13590 | AC101: 110 | AD101: =8423.3-103.6+832.1+686 -> 9837.8
X102: Закупка товаров, работ и услуг для обеспечения государственных (муниципальных) нужд | Y102: 001 | Z102: 01 | AA102: 13 | AB102: =AB103 -> 01 1 04 13590 | AC102: 200 | AD102: =AD103 -> 944.7
X103: Иные закупки товаров, работ и услуг для обеспечения государственных (муниципальных) нужд | Y103: 001 | Z103: 01 | AA103: 13 | AB103: 01 1 04 13590 | AC103: 240 | AD103: 944.7
X104: Иные бюджетные ассигнования | Y104: 001 | Z104: 01 | AA104: 13 | AB104: =AB105 -> 01 1 04 13590 | AC104: 800 | AD104: =AD105 -> 84.6
X105: Уплата налогов, сборов и иных платежей | Y105: 001 | Z105: 01 | AA105: 13 | AB105: 01 1 04 13590 | AC105: 850 | AD105: =5.8+78.8 -> 84.6
X106: Расходы на обеспечение деятельности муниципального казенного учреждения "Управление обеспечения деятельности Администрации города Лыткарино" | Y106: 001 | Z106: 01 | AA106: 13 | AB106: =AB107 -> 01 1 04 14590 | AD106: =AD107+AD109+AD111 -> 43849.2
X107: Расходы на выплаты персоналу в целях обеспечения выполнения функций государственными (муниципальными) органами, казенными учреждениями, органами управления государственными внебюджетными фондами | Y107: 001 | Z107: 01 | AA107: 13 | AB107: =AB108 -> 01 1 04 14590 | AC107: 100 | AD107: =AD108 -> 42935.3
X108: Расходы на выплаты персоналу казенных учреждений | Y108: 001 | Z108: 01 | AA108: 13 | AB108: =AB109 -> 01 1 04 14590 | AC108: 110 | AD108: =37341.3-611-1078.2+3565.2+19.1-19.1+3718 -> 42935.3
X109: Закупка товаров, работ и услуг для обеспечения государственных (муниципальных) нужд | Y109: 001 | Z109: 01 | AA109: 13 | AB109: =AB110 -> 01 1 04 14590 | AC109: 200 | AD109: =AD110 -> 705.1
X110: Иные закупки товаров, работ и услуг для обеспечения государственных (муниципальных) нужд | Y110: 001 | Z110: 01 | AA110: 13 | AB110: 01 1 04 14590 | AC110: 240 | AD110: =554.7-2.5+167.7-14.8 -> 705.1
X111: Иные бюджетные ассигнования | Y111: 001 | Z111: 01 | AA111: 13 | AB111: =AB112 -> 01 1 04 14590 | AC111: 800 | AD111: =AD112 -> 208.8
X112: Уплата налогов, сборов и иных платежей | Y112: 001 | Z112: 01 | AA112: 13 | AB112: 01 1 04 14590 | AC112: 850 | AD112: =162.4-19.1+19.1+29.8+16.6 -> 208.8
X113: Основное мероприятие "Составление (изменение) списков кандидатов в присяжные заседатели федеральных судов общей юрисдикции Российской Федерации" | Y113: 001 | Z113: 01 | AA113: 13 | AB113: 01 1 05 00000 | AD113: =AD114 -> 44
X114: Составление (изменение) списков кандидатов в присяжные заседатели федеральных судов общей юрисдикции Российской Федерации | Y114: 001 | Z114: 01 | AA114: 13 | AB114: 01 1 05 51200 | AD114: =AD115 -> 44
X115: Закупка товаров, работ и услуг для обеспечения государственных (муниципальных) нужд | Y115: 001 | Z115: 01 | AA115: 13 | AB115: 01 1 05 51200 | AC115: 200 | AD115: =AD116 -> 44
X116: Иные закупки товаров, работ и услуг для обеспечения государственных (муниципальных) нужд | Y116: 001 | Z116: 01 | AA116: 13 | AB116: 01 1 05 51200 | AC116: 240 | AD116: 44
X117: Подпрограмма «Снижение административных барьеров, повышение качества предоставления государственных и муниципальных услуг, в том числе на базе Многофункционального центра предоставления государственных и муниципальных услуг в городе Лыткарино" | Y117: 001 | Z117: 01 | AA117: 13 | AB117: 01 3 00 00000 | AD117: =AD118+AD122 -> 35190.5
X118: Основное мероприятие "Организация деятельности многофункционального центра" | Y118: 001 | Z118: 01 | AA118: 13 | AB118: 01 3 02 00000 | AD118: =AD119 -> 34386.6
X119: Расходы на обеспечение деятельности (оказание услуг (выполнение работ)) многофункционального центра | Y119: 001 | Z119: 01 | AA119: 13 | AB119: =AB120 -> 01 3 02 18590 | AD119: 34386.6
X120: Предоставление субсидий бюджетным, автономным учреждениям и иным некоммерческим организациям | Y120: 001 | Z120: 01 | AA120: 13 | AB120: =AB121 -> 01 3 02 18590 | AC120: 600 | AD120: 34386.6
X121: Субсидии бюджетным учреждениям | Y121: 001 | Z121: 01 | AA121: 13 | AB121: 01 3 02 18590 | AC121: 610 | AD121: =35039.5-2000+1347.1 -> 34386.6
X122: Основное мероприятие "Совершенствование системы предоставления государственных и муниципальных услуг по принципу одного окна в многофункциональных центрах предоставления государственных и муниципальных услуг" | Y122: 001 | Z122: 01 | AA122: 13 | AB122: 01 3 03 00000 | AD122: =AD123+AD126 -> 803.9
X123: Создание системы обеспечения информационной безопасности | Y123: 001 | Z123: 01 | AA123: 13 | AB123: =AB124 -> 01 3 03 00020 | AD123: =AD124 -> 783.7
X124: Предоставление субсидий бюджетным, автономным учреждениям и иным некоммерческим организациям | Y124: 001 | Z124: 01 | AA124: 13 | AB124: =AB125 -> 01 3 03 00020 | AC124: 600 | AD124: =AD125 -> 783.7
X125: Субсидии бюджетным учреждениям | Y125: 001 | Z125: 01 | AA125: 13 | AB125: 01 3 03 00020 | AC125: 610 | AD125: =1017.8-234.1 -> 783.7
X126: Открытие двух удаленных рабочих мест в МФЦ по адресу: город Лыткарино, ул.Ухтомского, д.29 | Y126: 001 | Z126: 01 | AA126: 13 | AB126: =AB127 -> 01 3 03 00040 | AD126: =AD127 -> 20.2
X127: Предоставление субсидий бюджетным, автономным учреждениям и иным некоммерческим организациям | Y127: 001 | Z127: 01 | AA127: 13 | AB127: =AB128 -> 01 3 03 00040 | AC127: 600 | AD127: =AD128 -> 20.2
X128: Субсидии бюджетным учреждениям | Y128: 001 | Z128: 01 | AA128: 13 | AB128: 01 3 03 00040 | AC128: 610 | AD128: 20.2
X129: Подпрограмма «Развитие системы информирования населения о деятельности органов местного самоуправления города Лыткарино Московской области» | Y129: 001 | Z129: 01 | AA129: 13 | AB129: 01 4 00 00000 | AD129: =AD130 -> 13.2
X130: Основное мероприятие "Информирование населения г.Лыткарино об основных событиях социально-экономического развития, общественно-политической жизни, о деятельности органов местного самоуправления города Лыткарино" | Y130: 001 | Z130: 01 | AA130: 13 | AB130: 01 4 01 00000 | AD130: 13.2
X131: Осуществление взаимодействия органов местного самоуправления с печатными средствами массовой информации в области подписки,доставки и распространения тиражей печатных изданий | Y131: 001 | Z131: 01 | AA131: 13 | AB131: =AB132 -> 01 4 01 00020 | AD131: 13.2
X132: Закупка товаров, работ и услуг для обеспечения государственных (муниципальных) нужд | Y132: 001 | Z132: 01 | AA132: 13 | AB132: =AB133 -> 01 4 01 00020 | AC132: 200 | AD132: 13.2
X133: Иные закупки товаров, работ и услуг для обеспечения государственных (муниципальных) нужд | Y133: 001 | Z133: 01 | AA133: 13 | AB133: 01 4 01 00020 | AC133: 240 | AD133: =9-0.1+4.5-0.2 -> 13.2
X134: Муниципальная программа «Культура города Лыткарино» на 2017-2021 годы | Y134: 001 | Z134: 01 | AA134: 13 | AB134: 02 0 00 00000 | AD134: =AD135 -> 12079.4
X135: Обеспечивающая подпрограмма | Y135: 001 | Z135: 01 | AA135: 13 | AB135: 02 7 00 00000 | AD135: =AD136 -> 12079.4
X136: Основное мероприятие "Обеспечение деятельности муниципальных казенных учреждений" | Y136: 001 | Z136: 01 | AA136: 13 | AB136: 02 7 01 00000 | AD136: 12079.4
X137: Обеспечение деятельности муниципального казенного учреждения "Комитет по делам культуры, молодежи,спорта и туризма г.Лыткарино" | Y137: 001 | Z137: 01 | AA137: 13 | AB137: 02 7 01 15590 | AD137: =AD138+AD140+AD142 -> 12079.4
X138: Расходы на выплаты персоналу в целях обеспечения выполнения функций государственными (муниципальными) органами, казенными учреждениями, органами управления государственными внебюджетными фондами | Y138: 001 | Z138: 01 | AA138: 13 | AB138: 02 7 01 15590 | AC138: 100 | AD138: =AD139 -> 11230.9
X139: Расходы на выплаты персоналу казенных учреждений | Y139: 001 | Z139: 01 | AA139: 13 | AB139: 02 7 01 15590 | AC139: 110 | AD139: =10542.5-972.3+957+703.7 -> 11230.9
X140: Закупка товаров, работ и услуг для обеспечения государственных (муниципальных) нужд | Y140: 001 | Z140: 01 | AA140: 13 | AB140: 02 7 01 15590 | AC140: 200 | AD140: =AD141 -> 813.5
X141: Иные закупки товаров, работ и услуг для обеспечения государственных (муниципальных) нужд | Y141: 001 | Z141: 01 | AA141: 13 | AB141: 02 7 01 15590 | AC141: 240 | AD141: =563.5+250 -> 813.5
X142: Иные бюджетные ассигнования | Y142: 001 | Z142: 01 | AA142: 13 | AB142: 02 7 01 15590 | AC142: 800 | AD142: =AD143 -> 35
X143: Уплата налогов, сборов и иных платежей | Y143: 001 | Z143: 01 | AA143: 13 | AB143: 02 7 01 15590 | AC143: 850 | AD143: 35
X144: Национальная оборона | Y144: 001 | Z144: 02 | AD144: =AD145+AD152 -> 3774
X145: Мобилизационная и вневойсковая подготовка | Y145: 001 | Z145: 02 | AA145: 03 | AD145: =AD146 -> 3476
X146: Муниципальная программа «Муниципальное управление города Лыткарино на 2017-2021 годы» | Y146: 001 | Z146: 02 | AA146: 03 | AB146: 01 0 00 00000 | AD146: =AD147 -> 3476
X147: Обеспечивающая подпрограмма | Y147: 001 | Z147: 02 | AA147: 03 | AB147: 01 1 00 00000 | AD147: 3476
X148: Основное мероприятие " Обеспечение деятельности Администрации городcкого округа Лыткарино и ее функциональных органов" | Y148: 001 | Z148: 02 | AA148: 03 | AB148: 01 1 01 00000 | AD148: 3476
X149: Расходы на осуществление полномочий по первичному воинскому учету на территориях, где отсутствуют военные комиссариаты | Y149: 001 | Z149: 02 | AA149: 03 | AB149: 01 1 01 51180 | AD149: 3476
X150: Расходы на выплаты персоналу в целях обеспечения выполнения функций государственными (муниципальными) органами, казенными учреждениями, органами управления государственными внебюджетными фондами | Y150: 001 | Z150: 02 | AA150: 03 | AB150: =AB151 -> 01 1 01 51180 | AC150: 100 | AD150: 3476
X151: Расходы на выплаты персоналу государственных (муниципальных) органов | Y151: 001 | Z151: 02 | AA151: 03 | AB151: 01 1 01 51180 | AC151: 120 | AD151: 3476
X152: Мобилизационная подготовка экономики | Y152: 001 | Z152: 02 | AA152: 04 | AD152: =AD153 -> 298
X153: Муниципальная программа «Муниципальное управление города Лыткарино на 2017-2021 годы» | Y153: 001 | Z153: 02 | AA153: 04 | AB153: 01 0 00 00000 | AD153: 298
X154: Обеспечивающая подпрограмма | Y154: 001 | Z154: 02 | AA154: 04 | AB154: 01 1 00 00000 | AD154: =AD155 -> 298
X155: Основное мероприятие "Обеспечение мобилизационной готовности экономики" | Y155: 001 | Z155: 02 | AA155: 04 | AB155: 01 1 03 00000 | AD155: 298
X156: Мероприятия по обеспечению мобилизационной готовности экономики | Y156: 001 | Z156: 02 | AA156: 04 | AB156: =AB157 -> 01 1 03 00080 | AD156: 298
X157: Закупка товаров, работ и услуг для обеспечения государственных (муниципальных) нужд | Y157: 001 | Z157: 02 | AA157: 04 | AB157: =AB158 -> 01 1 03 00080 | AC157: 200 | AD157: 298
X158: Иные закупки товаров, работ и услуг для обеспечения государственных (муниципальных) нужд | Y158: 001 | Z158: 02 | AA158: 04 | AB158: 01 1 03 00080 | AC158: 240 | AD158: =200+98 -> 298
X159: Национальная безопасность и правоохранительная деятельность | Y159: 001 | Z159: 03 | AD159: =AD160+AD217 -> 34615.1
X160: Защита населения и территории от чрезвычайных ситуаций природного и техногенного характера, гражданская оборона | Y160: 001 | Z160: 03 | AA160: 09 | AD160: =AD167+AD161 -> 24684
X161: Муниципальная программа «Муниципальное управление города Лыткарино на 2017-2021 годы» | Y161: 001 | Z161: 03 | AA161: 09 | AB161: 01 0 00 00000 | AD161: =AD162 -> 4.5
X162: Подпрограмма «Развитие системы информирования населения о деятельности органов местного самоуправления города Лыткарино Московской области» | Y162: 001 | Z162: 03 | AA162: 09 | AB162: 01 4 00 00000 | AD162: 4.5
X163: Основное мероприятие "Информирование населения г.Лыткарино об основных событиях социально-экономического развития, общественно-политической жизни, о деятельности органов местного самоуправления города Лыткарино" | Y163: 001 | Z163: 03 | AA163: 09 | AB163: 01 4 01 00000 | AD163: 4.5
X164: Осуществление взаимодействия органов местного самоуправления с печатными средствами массовой информации в области подписки,доставки и распространения тиражей печатных изданий | Y164: 001 | Z164: 03 | AA164: 09 | AB164: =AB165 -> 01 4 01 00020 | AD164: 4.5
X165: Закупка товаров, работ и услуг для обеспечения государственных (муниципальных) нужд | Y165: 001 | Z165: 03 | AA165: 09 | AB165: =AB166 -> 01 4 01 00020 | AC165: 200 | AD165: 4.5
X166: Иные закупки товаров, работ и услуг для обеспечения государственных (муниципальных) нужд | Y166: 001 | Z166: 03 | AA166: 09 | AB166: 01 4 01 00020 | AC166: 240 | AD166: 4.5
X167: Муниципальная программа "Безопасность города Лыткарино" на 2017-2021 годы | Y167: 001 | Z167: 03 | AA167: 09 | AB167: 08 0 00 00000 | AD167: =AD168+AD181+AD190+AD208 -> 24679.5
X168: Подпрограмма "Снижение рисков и смягчение последствий чрезвычайных ситуаций природного и техногенного характера" | Y168: 001 | Z168: 03 | AA168: 09 | AB168: 08 3 00 00000 | AD168: =AD169+AD174 -> 970
X169: Основное мероприятие "Создание финансового резервного фонда для ликвидации чрезвычайных ситуаций" | Y169: 001 | Z169: 03 | AA169: 09 | AB169: 08 3 07 00000 | AD169: =AD170 -> 200
X170: Мероприятия в области национальной безопасности и правоохранительной деятельности | Y170: 001 | Z170: 03 | AA170: 09 | AB170: 08 3 07 12000 | AD170: 200
X171: Создание резерва материальных ресурсов для ликвидации чрезвычайных ситуаций, в том числе террористических актов | Y171: 001 | Z171: 03 | AA171: 09 | AB171: =AB172 -> 08 3 07 12110 | AD171: =AD172 -> 200
X172: Закупка товаров, работ и услуг для обеспечения государственных (муниципальных) нужд | Y172: 001 | Z172: 03 | AA172: 09 | AB172: =AB173 -> 08 3 07 12110 | AC172: 200 | AD172: =AD173 -> 200
X173: Иные закупки товаров, работ и услуг для обеспечения государственных (муниципальных) нужд | Y173: 001 | Z173: 03 | AA173: 09 | AB173: 08 3 07 12110 | AC173: 240 | AD173: 200
X174: Основное мероприятие" Обеспечение безопасности на водных объектах" | Y174: 001 | Z174: 03 | AA174: 09 | AB174: 08 3 08 00000 | AD174: =AD175 -> 770
X175: Мероприятия в области национальной безопасности и правоохранительной деятельности | Y175: 001 | Z175: 03 | AA175: 09 | AB175: 08 3 08 12000 | AD175: =AD176 -> 770
X176: Мероприятия по спасению людей на водных объектах | Y176: 001 | Z176: 03 | AA176: 09 | AB176: =AB177 -> 08 3 08 12050 | AD176: =AD177+AD179 -> 770
X177: Закупка товаров, работ и услуг для обеспечения государственных (муниципальных) нужд | Y177: 001 | Z177: 03 | AA177: 09 | AB177: =AB178 -> 08 3 08 12050 | AC177: 200 | AD177: =AD178 -> 70
X178: Иные закупки товаров, работ и услуг для обеспечения государственных (муниципальных) нужд | Y178: 001 | Z178: 03 | AA178: 09 | AB178: 08 3 08 12050 | AC178: 240 | AD178: =70 -> 70
X179: Предоставление субсидий бюджетным, автономным учреждениям и иным некоммерческим организациям | Y179: 001 | Z179: 03 | AA179: 09 | AB179: =AB180 -> 08 3 08 12050 | AC179: 600 | AD179: =AD180 -> 700
X180: Субсидии бюджетным учреждениям | Y180: 001 | Z180: 03 | AA180: 09 | AB180: 08 3 08 12050 | AC180: 610 | AD180: 700
X181: Подпрограмма "Развитие и совершенствование системы оповещения и информирования населения" | Y181: 001 | Z181: 03 | AA181: 09 | AB181: 08 4 00 00000 | AD181: =AD182 -> 758
X182: Основное мероприятие "Развитие,совершенствование и обслуживание всех элементов системы оповещения и информирования населения города Лыткарино" | Y182: 001 | Z182: 03 | AA182: 09 | AB182: 08 4 01 00000 | AD182: =AD186+AD183 -> 758
X183: Содержание, техническое обслуживание и поддержание в состоянии постоянной готовности систем оповещения муниципального казенного учреждения "Единая дежурно-диспетчерская служба г.Лыткарино" | Y183: 001 | Z183: 03 | AA183: 09 | AB183: 08 4 01 00590 | AD183: =AD184 -> 133
X184: Закупка товаров, работ и услуг для обеспечения государственных (муниципальных) нужд | Y184: 001 | Z184: 03 | AA184: 09 | AB184: 08 4 01 00590 | AC184: 200 | AD184: 133
X185: Иные закупки товаров, работ и услуг для обеспечения государственных (муниципальных) нужд | Y185: 001 | Z185: 03 | AA185: 09 | AB185: 08 4 01 00590 | AC185: 240 | AD185: =7+126+50-50 -> 133
X186: Мероприятия в области национальной безопасности и правоохранительной деятельности | Y186: 001 | Z186: 03 | AA186: 09 | AB186: 08 4 01 12000 | AD186: =AD187 -> 625
X187: Мероприятия по созданию,техническому обслуживанию систем оповещения и информирования населения | Y187: 001 | Z187: 03 | AA187: 09 | AB187: =AB188 -> 08 4 01 12070 | AD187: 625
X188: Закупка товаров, работ и услуг для обеспечения государственных (муниципальных) нужд | Y188: 001 | Z188: 03 | AA188: 09 | AB188: =AB189 -> 08 4 01 12070 | AC188: 200 | AD188: 625
X189: Иные закупки товаров, работ и услуг для обеспечения государственных (муниципальных) нужд | Y189: 001 | Z189: 03 | AA189: 09 | AB189: 08 4 01 12070 | AC189: 240 | AD189: =410+215 -> 625
X190: Подпрограмма "Обеспечение мероприятий гражданской обороны" | Y190: 001 | Z190: 03 | AA190: 09 | AB190: 08 6 00 00000 | AD190: =AD191+AD203+AD199 -> 775
X191: Основное мероприятие "Обеспечение мероприятий гражданской обороны" | Y191: 001 | Z191: 03 | AA191: 09 | AB191: 08 6 01 00000 | AD191: =AD195+AD192 -> 355
X192: Обучение специалистов по гражданской обороне, операторов и диспетчеров системы обеспечения вызова экстренных служб муниципального казенного учреждения "Единая дежурно-диспетчерская служба г.Лыткарино" | Y192: 001 | Z192: 03 | AA192: 09 | AB192: =AB193 -> 08 6 01 00590 | AD192: =AD193 -> 40
X193: Закупка товаров, работ и услуг для обеспечения государственных (муниципальных) нужд | Y193: 001 | Z193: 03 | AA193: 09 | AB193: =AB194 -> 08 6 01 00590 | AC193: 200 | AD193: 40
X194: Иные закупки товаров, работ и услуг для обеспечения государственных (муниципальных) нужд | Y194: 001 | Z194: 03 | AA194: 09 | AB194: 08 6 01 00590 | AC194: 240 | AD194: 40
X195: Мероприятия в области национальной безопасности и правоохранительной деятельности | Y195: 001 | Z195: 03 | AA195: 09 | AB195: 08 6 01 12000 | AD195: =AD196 -> 315
X196: Мероприятия по гражданской обороне и защите населения на территории города Лыткарино | Y196: 001 | Z196: 03 | AA196: 09 | AB196: =AB197 -> 08 6 01 12090 | AD196: 315
X197: Закупка товаров, работ и услуг для обеспечения государственных (муниципальных) нужд | Y197: 001 | Z197: 03 | AA197: 09 | AB197: =AB198 -> 08 6 01 12090 | AC197: 200 | AD197: 315
X198: Иные закупки товаров, работ и услуг для обеспечения государственных (муниципальных) нужд | Y198: 001 | Z198: 03 | AA198: 09 | AB198: 08 6 01 12090 | AC198: 240 | AD198: 315
X199: Основное мероприятие ""Создание запасов материально-технических,продовольственных, медицинских и иных средств для целей гражданской обороны" | Y199: 001 | Z199: 03 | AA199: 09 | AB199: 08 6 02 00000 | AD199: =AD200 -> 20
X200: Мероприятия по гражданской обороне и защите населения на территории города Лыткарино | Y200: 001 | Z200: 03 | AA200: 09 | AB200: =AB201 -> 08 6 02 12090 | AD200: =AD201 -> 20
X201: Закупка товаров, работ и услуг для обеспечения государственных (муниципальных) нужд | Y201: 001 | Z201: 03 | AA201: 09 | AB201: =AB202 -> 08 6 02 12090 | AC201: 200 | AD201: =AD202 -> 20
X202: Иные закупки товаров, работ и услуг для обеспечения государственных (муниципальных) нужд | Y202: 001 | Z202: 03 | AA202: 09 | AB202: 08 6 02 12090 | AC202: 240 | AD202: 20
... 1212 more rows

Sheet Лист1
